Cogmind - Beta 17.1 @@@ ROGUE MODE // 2026.09.12 @ 22:20:17 Player: aoemica Result: Establishing 0b11! Performance ------------- Evolutions (9) 4500 Regions Visited (32) 6400 Robots Destroyed (238) 1190 Value Destroyed (19436) 19436 Prototype IDs (389) 7780 Alien Tech Used (0) 0 Bonus (51662) 51662 TOTAL SCORE: 90968 Bonus ------- High Alert Combat Kills 1698 Follower Combat Kills 16227 Hunted by Unchained 500 Destroyed Unchained 1000 Entered Garrisons 2400 Used RIF Installer 7000 Aligned with FarCom 300 Met MAIN.C 5000 Destroyed MAIN.C Shell 5000 Destroyed MAIN.C 10000 Win 3000 Friendly Fire -463 Cogmind --------- Core Integrity 1392/1600 Matter 282/300 Energy 148/150 System Corruption 4% Temperature Cool (5) Movement Flying (22) Location 0b11 Command Parts ------- > --- POWER (1) -------- Micro Antimatter Reactor > --- PROPULSION (6) --- Advanced Surge Thruster Cooled Field Propulsion Drive Improved Diametric Drive Improved Diametric Drive Impulse Thruster Array > --- UTILITY (16) ----- Large Storage Unit Relay Coupler [Grunt] (43) Relay Coupler [Grunt] (42) Relay Coupler [Grunt] (53) Relay Coupler [Grunt] (52) Relay Coupler [Sentry] (20) Relay Coupler [Sentry] (39) Relay Coupler [Hunter] (15) Relay Coupler [Hunter] (30) Relay Coupler [Hunter] (30) Relay Coupler [Proto] (16) Relay Coupler [Proto] (16) Relay Coupler [Proto] (9) > --- WEAPON (2) ------- Advanced Remote Datajack Shock Maul > --- INVENTORY (15) --- Micro Antimatter Reactor Field Propulsion Array Field Propulsion Array Improved Diametric Drive Advanced Point Defense System Mini Smartbomb Launcher Advanced Remote Datajack Advanced Remote Datajack Peak State ------------ > --- POWER ------------ Micro Antimatter Reactor > --- PROPULSION ------- Advanced Surge Thruster Cooled Field Propulsion Drive Field Propulsion Array Improved Diametric Drive Improved Diametric Drive > --- UTILITY ---------- Large Storage Unit Relay Coupler [Grunt] Relay Coupler [Grunt] Relay Coupler [Grunt] Relay Coupler [Sentry] Relay Coupler [Sentry] Relay Coupler [Hunter] Relay Coupler [Hunter] Relay Coupler [Hunter] Relay Coupler [Hunter] Relay Coupler [Behemoth] Relay Coupler [Proto] Relay Coupler [Proto] Relay Coupler [Proto] Relay Coupler [Proto] Relay Coupler [Proto] > --- WEAPON ----------- Advanced Remote Datajack Shock Maul > --- INVENTORY -------- Micro Antimatter Reactor Advanced Surge Thruster Field Propulsion Array Improved Diametric Drive Advanced Point Defense System Relay Coupler [Grunt] Relay Coupler [Hunter] Mini Smartbomb Launcher Advanced Remote Datajack [Rating: 164] Favorites ----------- Power Light Nuclear Core Engine Light Ion Engine Power Core Light Nuclear Core Reactor Micro Antimatter Reactor Propulsion Light Treads Treads Light Treads Leg Aluminum Leg Flight Unit Electron Diverter Utility Relay Coupler [Grunt] Device Improved Heat Sink Storage Medium Storage Unit Processor Advanced Targeting Computer Hackware Relay Coupler [Grunt] Protection Hardened Light Armor Plating Weapon Shock Maul Energy Gun Heavy EM Shotgun Energy Cannon Heavy Particle Cannon Ballistic Gun Assault Rifle Ballistic Cannon Heavy Flak Cannon Launcher Mini Smartbomb Launcher Special Weapon Advanced Remote Datajack Impact Weapon Shock Maul Slashing Weapon Makeshift Axe Piercing Weapon Heavy Pick Special Melee Weapon Improved Datajack Build | -11 -10 -10 -10 -9 -8 -8 -8 -8 -7 -7 -7 -7 -6 -6 -6 -6 -5 -5 -5 -5 -4 -4 -3 -3 -2 -2 -2 -2 -1 -1 -1 -1 ------- Run | Yrd Mat Min Exi Min Mat Gar Mat Gar Fac Gar Fac Gar Fac Gar Fac Gar Fac Was Fac Gar Fac Gar Res Gar Res Gar Res Gar Acc Gar Acc Com Slots Evolved 18 | . . . . . 4 . . . 2 . . . 2 . . . 2 . . . 2 . 2 . 2 . . . 2 . . . Power . | . . . . . . . . . . . . . . . . . . . . . . . . . . . . . . . . . Propulsion 4 | . . . . . 1 . . . . . . . 1 . . . 1 . . . . . 1 . . . . . . . . . Utility 14 | . . . . . 3 . . . 2 . . . 1 . . . 1 . . . 2 . 1 . 2 . . . 2 . . . Weapon . | . . . . . . . . . . . . . . . . . . . . . . . . . . . . . . . . . Parts Attached 327 | 1 7 9 . 2 19 16 17 12 11 12 7 23 4 22 5 10 20 2 7 10 5 8 20 9 3 18 2 12 1 9 10 14 Power 32 | . . 2 . 1 1 4 1 2 . 3 1 2 1 2 1 2 3 . . . . . . . . 2 . 2 . . 1 1 Engine 8 | . . 2 . 1 . 3 . . . . . . . . . 2 . . . . . . . . . . . . . . . . Core 18 | . . . . . 1 1 1 2 . 3 1 2 1 2 1 . 3 . . . . . . . . . . . . . . . Reactor 6 | . . . . . . . . . . . . . . . . . . . . . . . . . . 2 . 2 . . 1 1 Propulsion 68 | . 2 3 . . 4 3 7 2 3 2 2 2 . 7 . 3 4 . 1 . 1 1 7 . 1 1 . 3 . 4 4 1 Treads 20 | . 2 3 . . 4 3 6 2 . . . . . . . . . . . . . . . . . . . . . . . . Leg . | . . . . . . . . . . . . . . . . . . . . . . . . . . . . . . . . . Wheel . | . . . . . . . . . . . . . . . . . . . . . . . . . . . . . . . . . Hover . | . . . . . . . . . . . . . . . . . . . . . . . . . . . . . . . . . Flight 48 | . . . . . . . 1 . 3 2 2 2 . 7 . 3 4 . 1 . 1 1 7 . 1 1 . 3 . 4 4 1 Utility 179 | 1 4 . . . 9 5 5 6 8 7 1 17 3 9 4 5 8 2 5 10 3 7 9 8 2 14 2 6 1 5 3 10 Device 27 | 1 2 . . . 1 2 1 1 . . . . . . 1 . 3 1 1 1 1 . 5 . . 3 . . . . . 3 Storage 9 | . 2 . . . 2 . . . . . . . . . 1 . . . 2 . . . . . . . 2 . . . . . Processor 5 | . . . . . 2 . . . . . . . . . . . 2 . . . . . 1 . . . . . . . . . Hackware 128 | . . . . . 1 1 3 4 8 7 . 17 3 9 2 5 3 . 1 9 2 7 3 8 2 11 . 6 1 5 3 7 Protection 10 | . . . . . 3 2 1 1 . . 1 . . . . . . 1 1 . . . . . . . . . . . . . Artifact . | . . . . . . . . . . . . . . . . . . . . . . . . . . . . . . . . . Weapon 48 | . 1 4 . 1 5 4 4 2 . . 3 2 . 4 . . 5 . 1 . 1 . 4 1 . 1 . 1 . . 2 2 Energy Gun 9 | . 1 1 . 1 3 1 1 1 . . . . . . . . . . . . . . . . . . . . . . . . Energy Cannon 2 | . . . . . 1 . . . . . . . . . . . . . . . . . 1 . . . . . . . . . Ballistic Gun 4 | . . 1 . . . . 1 . . . . . . . . . 2 . . . . . . . . . . . . . . . Ballistic Cannon 2 | . . . . . . . 1 1 . . . . . . . . . . . . . . . . . . . . . . . . Launcher 6 | . . 1 . . 1 2 1 . . . . . . . . . . . 1 . . . . . . . . . . . . . Special Weapon 13 | . . . . . . 1 . . . . . 2 . 1 . . 1 . . . 1 . 2 1 . 1 . . . . 1 2 Impact Weapon 5 | . . . . . . . . . . . 1 . . . . . 1 . . . . . 1 . . . . 1 . . 1 . Slashing Weapon 5 | . . 1 . . . . . . . . 1 . . 3 . . . . . . . . . . . . . . . . . . Piercing Weapon 1 | . . . . . . . . . . . . . . . . . 1 . . . . . . . . . . . . . . . Special Melee Weapon 1 | . . . . . . . . . . . 1 . . . . . . . . . . . . . . . . . . . . . Unidentified Prototypes 20 | . . . . . 2 . 3 . . . 2 . . . . . 3 . 2 . . . 1 . 1 4 . . . . 1 1 Corrupted Parts 2 | . . . . . . . . . . . . 1 . . . . . . . . . . . 1 . . . . . . . . System Corruption 10 | . . . . . . . . . . . . 2 . . . . . . . . . . . 8 . . . . . . . . Parts Lost 65 | . 1 9 . . 2 1 1 1 . 5 . 5 3 2 3 3 4 . . . 1 5 2 1 . 4 . 2 . 3 2 5 Power 7 | . . 2 . . . 1 . . . 1 . . 1 . . 1 . . . . . . . . . 1 . . . . . . Propulsion 23 | . . 3 . . 1 . . . . 2 . 3 1 1 2 1 1 . . . 1 2 1 . . . . 1 . 2 . 1 Utility 26 | . 1 . . . . . 1 1 . 1 . 2 1 1 1 . 3 . . . . 3 1 1 . 3 . 1 . 1 1 3 Weapon 9 | . . 4 . . 1 . . . . 1 . . . . . 1 . . . . . . . . . . . . . . 1 1 Highest Loss Streak 5 | . 1 5 . . 2 1 1 1 . 2 . 2 3 1 2 2 3 . . . 1 2 1 1 . 1 . 2 . 1 1 4 To Critical Strikes 2 | . . 1 . . . . . . . . . . . . . . . . . . . . . . . 1 . . . . . . Average Backups 12 | 6 11 12 10 12 18 23 23 23 9 4 5 4 4 4 6 4 8 9 9 9 9 9 9 8 9 8 9 13 14 14 13 10 Power . | 1 1 . . . . . . . . . . . . . 1 . . 1 1 1 1 1 1 1 1 1 1 1 1 1 1 1 Propulsion 2 | 4 6 7 6 6 4 3 3 3 2 1 1 . . . . . 1 . . 2 1 . 1 1 1 1 1 2 2 1 1 2 Utility 6 | . 2 2 2 4 7 12 11 11 4 1 2 2 1 1 1 2 3 6 6 4 4 4 5 4 4 3 6 9 10 11 10 4 Weapon 2 | 1 1 1 1 1 4 6 7 7 3 1 1 1 2 1 1 . 2 1 . . 1 1 1 1 1 1 1 1 1 1 1 1 Tool/Special . | . . . . . . . . . . . . . . . . . . . . . . . . . . . . . . . . . Unused Backups 70 | 6 3 2 1 1 3 7 5 4 2 4 1 2 . 1 . 1 2 . . 1 . 3 . 4 . 1 . 7 . 2 2 5 Power 4 | 1 . 1 . . . . . . . . . . . . . 1 . . . . . . . . . . . . . . . 1 Propulsion 13 | 2 2 . . 1 . 1 3 1 . . 1 . . . . . . . . . . . . . . . . . . . 1 1 Utility 44 | 1 1 . . . 2 5 2 3 2 4 . 2 . 1 . . 1 . . 1 . 2 . 4 . 1 . 7 . 2 1 2 Weapon 6 | 2 . 1 1 . 1 . . . . . . . . . . . 1 . . . . . . . . . . . . . . . Tool/Special 3 | . . . . . . 1 . . . . . . . . . . . . . . . 1 . . . . . . . . . 1 Average Slot Usage (%) 93 | . 97 93 100 98 96 99 99 99 91 90 93 72 74 89 92 89 91 94 94 92 89 88 94 93 93 91 95 94 92 92 95 90 Engine 1 | . 14 11 14 14 2 4 . . . . . . . . . 4 2 . . . . . . . . . . . . . . . Core 4 | . . . . . 6 4 8 9 7 6 7 2 5 5 6 1 2 5 5 5 5 5 4 4 4 1 . . . . . . Treads 9 | . 22 27 28 28 27 27 26 27 1 . . . . . . . . . . . . . . . . . . . . . . . Flight 13 | . . . . . . . . . 21 22 23 12 11 22 25 25 23 23 23 23 21 20 23 23 21 20 21 21 20 19 20 20 Device 5 | . 11 14 14 14 14 16 13 6 3 . . . . . 1 . 3 . 1 . 3 3 6 4 4 . . . . . . 1 Storage 5 | . 14 14 14 14 9 9 9 9 2 . . . . . 3 . 4 5 5 5 5 5 4 4 4 4 4 4 4 4 4 4 Processor 3 | . . . . . 10 9 9 9 1 . . . . . . . 4 3 . . . . 2 4 4 . . . . . . . Hackware 31 | . . . . . . 1 3 11 34 45 48 43 50 47 44 43 36 41 41 39 37 37 39 40 45 52 56 55 56 56 59 53 Protection 3 | . . . . . 8 9 9 8 2 . 2 3 . . . . . 1 3 5 5 5 1 . . . . . . . . . Energy Gun 3 | . 13 5 14 14 9 14 14 4 . . . . . . . . . . . . . . . . . . . . . . . . Special Weapon 2 | . . . . . . . . 3 7 5 . 1 1 3 3 5 1 1 1 4 5 5 3 4 4 4 4 4 4 4 3 3 Impact Weapon 1 | . . . . . . . . . . . . . . . . . 1 5 5 5 5 4 3 4 4 4 4 4 4 3 4 3 Slashing Weapon 1 | . . 2 14 12 2 . 3 . 4 6 7 4 1 5 4 5 . . . . . . . . . . . . . . . . Peak Build Rating 164 | 7 8 11 14 24 36 38 43 47 46 47 47 46 45 57 54 55 68 73 75 73 84 90 120 126 129 131 129 129 128 130 140 164 Average Rating 67 | 6 7 8 12 14 29 35 41 43 40 38 42 37 39 49 46 48 61 68 71 71 78 82 112 121 127 122 129 127 128 126 133 146 On Entrance 65 | 6 7 8 11 14 14 36 35 43 46 43 41 41 44 39 53 40 52 68 68 72 73 84 84 119 122 129 129 129 127 128 128 139 Avg Prop Armor Cover (%) 2 | . . . . . . . . . . . . . . . . . 3 . . . . . 2 . . . . . . . . . Naked Turns . | . . . . . . . . . . . . . . . . . . . . . . . . . . . . . . . . . Heaviest Build 116 | 12 28 29 29 32 102 106 107 116 11 12 18 14 8 11 20 19 28 27 27 27 28 29 32 30 29 29 36 36 36 37 40 40 Greatest Support 60 | 20 40 40 40 40 60 60 60 60 13 13 14 14 9 17 20 21 28 28 32 28 28 33 49 49 49 48 46 46 42 47 45 47 Greatest Overweight (x) 2 | . . . . . 1 1 2 1 . . 1 1 . . 1 . 1 . . . . 1 1 . . . . . . . 1 . Average Overweight (x) . | . . . . . . 1 1 1 . . . . . . . . . . . . . . . . . . . . . . . . Largest Inventory Capacity 25 | 8 15 15 15 15 25 25 25 25 25 5 5 5 5 5 10 10 10 10 10 10 10 10 10 10 10 10 15 15 15 15 15 15 Average Capacity 13 | 8 13 15 15 15 20 25 25 25 11 5 5 5 5 5 8 5 9 10 10 10 10 10 10 10 10 10 13 15 15 15 15 15 Most Carried 25 | 7 15 15 15 15 25 25 25 25 25 5 5 5 5 5 7 6 10 10 10 10 10 10 10 10 10 10 11 15 14 15 15 15 Average Carried 13 | 6 11 12 13 14 19 24 24 24 8 4 4 4 4 4 6 4 8 9 9 9 9 9 9 9 9 9 10 14 14 14 14 12 Final Capacity 25 | 8 15 15 15 15 25 25 25 25 5 5 5 5 5 5 10 5 10 10 10 10 10 10 10 10 10 10 15 15 15 15 15 15 Final Carried 25 | 7 15 13 15 15 24 25 25 25 5 5 5 5 5 5 7 4 9 10 10 10 10 10 10 10 10 10 11 15 14 15 15 10 Class Distribution -------------------- 52% | Botlord-Sprinter 20% | Bothacker-Mutant 14% | Mutant 4% | Commander-Sprinter 3% | Bothacker-Sprinter Dominant Class ---------------- Mutant | -10/Materials Mutant | -10/Mines Mutant | -10/Exiles Mutant | -9/Mines Mutant | -8/Materials Bothacker-Mutant | -8/Garrison Bothacker-Mutant | -8/Materials Bothacker-Mutant | -8/Garrison Bothacker-Mutant | -7/Factory Bothacker-Sprinter | -7/Garrison Commander-Sprinter | -7/Factory Botlord-Mutant | -7/Garrison Botlord-Sprinter | -6/Factory Botlord-Sprinter | -6/Garrison Botlord-Sprinter | -6/Factory Botlord-Sprinter | -6/Garrison Botlord-Sprinter | -5/Factory Botlord-Sprinter | -5/Waste Botlord-Sprinter | -5/Factory Botlord-Sprinter | -5/Garrison Botlord-Sprinter | -4/Factory Botlord-Sprinter | -4/Garrison Botlord-Sprinter | -3/Research Botlord-Sprinter | -3/Garrison Botlord-Sprinter | -2/Research Botlord-Sprinter | -2/Garrison Botlord-Sprinter | -2/Research Botlord-Sprinter | -2/Garrison Botlord-Sprinter | -1/Access Botlord-Sprinter | -1/Garrison Botlord-Sprinter | -1/Access Botlord-Sprinter | -1/Command Resources | -11 -10 -10 -10 -9 -8 -8 -8 -8 -7 -7 -7 -7 -6 -6 -6 -6 -5 -5 -5 -5 -4 -4 -3 -3 -2 -2 -2 -2 -1 -1 -1 -1 ----------- Run | Yrd Mat Min Exi Min Mat Gar Mat Gar Fac Gar Fac Gar Fac Gar Fac Gar Fac Was Fac Gar Fac Gar Res Gar Res Gar Res Gar Acc Gar Acc Com Matter Collected 11121 | 270 206 117 . 48 282 470 661 1091 64 501 136 682 195 354 147 433 711 584 20 328 131 298 539 430 4 621 50 300 . 250 360 838 Remotely . | . . . . . . . . . . . . . . . . . . . . . . . . . . . . . . . . . Salvage Created 12382 | 142 562 44 . 90 778 908 1024 1123 64 16 366 40 . 179 362 213 1147 1847 83 158 192 147 539 450 . 28 394 221 . 577 324 364 Parts 487 | 13 21 . . 4 33 59 64 64 4 2 19 2 . 7 13 8 46 45 1 1 5 7 8 9 . 1 8 5 . 16 12 10 Haulers Intercepted 22 | . 2 . . . 3 . 2 . . . 4 . . . . . 6 . 1 . . . 3 . . . 1 . . . . . Recyclers Shooed 4 | . 3 . . . . . . . . . . . . . . . 1 . . . . . . . . . . . . . . . Parts Field Recycled . | . . . . . . . . . . . . . . . . . . . . . . . . . . . . . . . . . Retrieved Matter . | . . . . . . . . . . . . . . . . . . . . . . . . . . . . . . . . . Parts Self-Destructed . | . . . . . . . . . . . . . . . . . . . . . . . . . . . . . . . . . Prevented . | . . . . . . . . . . . . . . . . . . . . . . . . . . . . . . . . . Parts Restored . | . . . . . . . . . . . . . . . . . . . . . . . . . . . . . . . . . Kills | -11 -10 -10 -10 -9 -8 -8 -8 -8 -7 -7 -7 -7 -6 -6 -6 -6 -5 -5 -5 -5 -4 -4 -3 -3 -2 -2 -2 -2 -1 -1 -1 -1 ------- Run | Yrd Mat Min Exi Min Mat Gar Mat Gar Fac Gar Fac Gar Fac Gar Fac Gar Fac Was Fac Gar Fac Gar Res Gar Res Gar Res Gar Acc Gar Acc Com Combat Hostiles Destroyed 158 | . 8 7 . 2 10 23 18 26 . 3 2 3 . 2 3 6 3 6 . 4 2 4 3 8 . 1 1 2 . 2 1 8 Melee 28 | . . 2 . . 2 . 2 3 . . . 1 . 2 3 2 . 1 . . . 1 . 3 . 1 1 2 . 2 . . Guns 54 | . 8 . . 2 2 10 11 13 . . . . . . . . 3 5 . . . . . . . . . . . . . . Cannons 20 | . . . . . 4 7 . 9 . . . . . . . . . . . . . . . . . . . . . . . . AOE 41 | . . 5 . . 2 5 4 1 . 3 2 2 . . . 4 . . . 2 . 3 . . . . . . . . . 8 Classes Destroyed 21 | 2 3 1 . 1 5 3 4 . . . . . . 1 . . . 1 . . . . . . . . . . . . . . Worker 2 | . . . . . 1 . . . . . 1 . . . . . . . . . . . . . . . . . . . . . Builder 5 | . 1 . . . 1 . 2 . . . . . . . . . . . . . . . . . . . . . . . 1 . Tunneler 5 | 4 . . . . . . 1 . . . . . . . . . . . . . . . . . . . . . . . . . Hauler 22 | . 2 . . . 3 . 2 . . . 4 . . . . . 6 . 1 . . . 3 . . . 1 . . . . . Recycler 10 | 1 1 . . . 2 . 1 . 1 . . . . . 2 . 2 . . . . . . . . . . . . . . . Mechanic 1 | . . . . . . . 1 . . . . . . . . . . . . . . . . . . . . . . . . . Operator 3 | . . . . . . . 1 . . . 1 . . . . . . . . . . . . . . . 1 . . . . . Watcher 16 | . . . . . 2 1 1 . . . 3 . . . . . 3 . . . 1 1 1 . . . . . . 1 2 . Swarmer 38 | . . . . . 2 6 3 5 . 3 2 4 . 1 . 3 . . . 1 . 3 . 1 . 1 . . . . . 3 Cutter 4 | . . . . . . . . . . . . . . 1 . 1 . . . . . . . 1 . . . . . 1 . . Grunt 71 | . 8 . . 1 5 9 6 11 . . . . . 1 2 5 1 . . 2 2 1 1 5 . . 3 2 . 3 1 2 Brawler 2 | . . . . 1 . . 1 . . . . . . . . . . . . . . . . . . . . . . . . . Duelist 3 | . . . . . . 1 1 . . . . . . 1 . . . . . . . . . . . . . . . . . . Protector 1 | . . . . . . . 1 . . . . . . . . . . . . . . . . . . . . . . . . . Sentry 13 | . . . . . 2 2 3 2 . . . . . . . . . . . . . . 1 . . . . 1 . 1 1 . Demolisher 1 | . . . . . . . 1 . . . . . . . . . . . . . . . . . . . . . . . . . Specialist 4 | . . . . . . 1 . 2 . . . . . . . . . . . . . . . . . . . . . . . 1 Hunter 13 | . . . . . 1 1 2 3 . . . . . . . . . . . 1 . . 1 . . . . . . 2 1 1 Programmer 16 | . . . . . . 3 . 5 . . . . . 1 1 . 2 . . . . . . 1 . . . . . . . 3 Compactor 6 | . . . . . . . . . . . . . . . . . . 6 . . . . . . . . . . . . . . Assembled 7 | . . 7 . . . . . . . . . . . . . . . . . . . . . . . . . . . . . . Martyr 2 | . . . . . . . . . . . . . . . . . . 2 . . . . . . . . . . . . . . Best Kill Streak 10 | 3 3 7 . 2 5 3 10 5 1 3 2 2 . 1 3 2 4 1 1 2 1 3 1 3 . 1 3 1 . 1 1 8 Combat Bots Only 8 | . 2 7 . 2 3 3 7 5 . 3 2 2 . 1 1 2 3 1 . 2 1 3 1 3 . 1 1 1 . 1 1 8 Max Kills in Single Turn 5 | 1 2 3 . 1 2 3 5 1 1 1 2 2 . 1 1 1 1 1 1 1 1 3 1 1 . 1 1 1 . 1 1 4 Gunslinging 1 | . . . . . . 1 . . . . . . . . . . . . . . . . . . . . . . . . . . Exploded 4 | . . 3 . . 1 3 3 1 . 1 2 2 . . . 1 . . . 1 . 3 . . . . . . . . . 4 Melee 1 | . . 1 . . 1 . 1 1 . . . 1 . 1 1 1 . 1 . . . 1 . 1 . 1 1 1 . 1 . . Uniques/NPCs Destroyed 3 | . . . . . . . . . . . . . . . . . . . . . . . . . . . . . . . 1 2 BL-1NK (-1/Access) MAIN.C Shell (-1/Command) MAIN.C (-1/Command) Combat | -11 -10 -10 -10 -9 -8 -8 -8 -8 -7 -7 -7 -7 -6 -6 -6 -6 -5 -5 -5 -5 -4 -4 -3 -3 -2 -2 -2 -2 -1 -1 -1 -1 -------- Run | Yrd Mat Min Exi Min Mat Gar Mat Gar Fac Gar Fac Gar Fac Gar Fac Gar Fac Was Fac Gar Fac Gar Res Gar Res Gar Res Gar Acc Gar Acc Com Hostile Shots Fired 976 | . 34 45 . 3 49 65 69 141 . 36 6 95 9 34 38 43 49 . . 12 5 26 78 11 . 15 7 6 . 20 16 64 Missed 421 | . 7 15 . 1 17 15 23 31 . 11 4 56 5 18 18 21 33 . . 8 2 10 51 9 . 6 1 1 . 12 4 42 Hits 555 | . 27 30 . 2 32 50 46 110 . 25 2 39 4 16 20 22 16 . . 4 3 16 27 2 . 9 6 5 . 8 12 22 Melee 7 | . . 3 . . . . . . . . . . . . 2 . . . . . . . . . . 1 . 1 . . . . Projectile 548 | . 27 27 . 2 32 50 46 110 . 25 2 39 4 16 18 22 16 . . 4 3 16 27 2 . 8 6 4 . 8 12 22 AOE 26 | . . 12 . . . . 5 . . . . . . . . 1 . . . . . 1 . 1 . . . 3 . 1 . 2 Critical Strikes 20 | . 1 1 . . 2 2 1 1 . . 1 1 . . 1 . 1 . . . . 2 . . . 1 . 1 . . 1 3 Actively Blocked 2 | . . . . . . . . . . . . . . . . . . . . . . 2 . . . . . . . . . . Part Disruptions 2 | . . . . . . . 2 . . . . . . . . . . . . . . . . . . . . . . . . . Damage Taken 11509 | . 383 838 . 24 493 686 713 1555 . 371 49 515 106 288 310 494 592 . 23 99 212 454 723 76 . 344 134 423 . 333 450 821 Core 2044 | . 70 159 . 12 48 62 79 127 . 87 . 100 29 126 119 115 217 . . . 30 77 114 32 . 73 46 114 . 50 41 117 Absorbed by Shields 367 | . . . . . . 82 153 . . . . . . . . . . . . . . . . . . 12 . 12 . 10 . 98 Regen/Repaired (Parts) 1014 | . . . . . . . . 467 . 24 . . 31 . 34 79 . 43 . 10 75 155 . . . . . . . . 55 41 Core Remaining (%) 69 | 100 . . . 3 . . . 42 . . . 73 . . . 54 . . . 78 . 90 . 88 . . . 83 . . . 87 Volleys Fired 817 | 15 51 10 . . 31 64 48 106 . 27 4 21 11 14 16 34 33 100 . 16 15 16 22 20 1 35 3 18 . 13 24 49 Largest 2 | 2 2 1 . . 2 2 2 2 . 1 1 1 1 1 1 1 2 1 . 1 1 1 1 1 1 1 1 1 . 1 1 1 Hottest 130 | 40 70 33 . . 130 130 100 105 . 39 39 39 5 5 5 39 66 33 . 80 7 80 113 80 10 10 10 10 . 80 10 80 Shots Fired 1076 | 30 102 10 . 4 59 110 78 165 . 27 4 21 11 14 16 34 58 101 . 16 15 16 22 20 1 35 3 18 . 13 24 49 Gun 538 | 30 102 4 . 4 32 65 58 87 . . . . . . . . 55 101 . . . . . . . . . . . . . . Cannon 112 | . . . . . 23 35 4 49 . . . . . . . . . . . . . . 1 . . . . . . . . . Launcher 60 | . . 6 . . 4 3 3 . . 6 4 3 . . . 17 . . . 2 . 1 . 1 . . . . . 1 . 9 Special 366 | . . . . . . 7 13 29 . 21 . 18 11 14 16 17 3 . . 14 15 15 21 19 1 35 3 18 . 12 24 40 Kinetic 294 | 30 51 4 . . . . 4 49 . . . . . . . . 55 101 . . . . . . . . . . . . . . Thermal 214 | . 51 . . 4 55 60 . 43 . . . . . . . . . . . . . . 1 . . . . . . . . . Explosive 60 | . . 6 . . 4 3 3 . . 6 4 3 . . . 17 . . . 2 . 1 . 1 . . . . . 1 . 9 Electromagnetic 142 | . . . . . . 40 58 44 . . . . . . . . . . . . . . . . . . . . . . . . Robot Hit Streak 18 | 11 14 3 . 5 13 18 13 13 . 3 2 3 4 3 8 4 9 16 . 6 10 17 8 6 2 11 8 11 . 14 10 11 Robot Miss Streak 4 | 3 3 1 . . 1 3 3 4 . 3 1 4 1 3 1 3 1 2 . 1 1 . 2 2 . 1 . 1 . 2 1 1 Penetration Max 2 | . . . . . . . . 1 . . . . . . . . 2 1 . . . . . . . . . . . . . . Secondary Targets 5 | . . . . . . 2 2 1 . . . . . . . . . . . . . . . . . . . . . . . . Max Gunslinging Chain 1 | . . . . . . 1 1 1 . . . . . . . . . . . . . . . . . . . . . . . . Autonomous 9 | . . . . 4 5 . . . . . . . . . . . . . . . . . . . . . . . . . . . Shots Hit Robots 971 | 21 68 7 . 4 48 67 62 123 1 16 25 27 16 32 28 22 32 104 1 19 16 26 31 22 1 28 9 21 . 23 34 37 Core Hits 355 | 8 27 13 . 2 25 35 47 56 1 4 10 4 . 4 7 19 27 19 . 5 1 5 3 2 . 1 2 2 . 4 4 18 Critical Kills 21 | 1 . . . . . . . . . . . . . . . . 6 7 . . 1 . 1 1 . 1 2 1 . . . . Critical Parts Destroyed 39 | . 1 . . . . . . . . . . . . . . . 8 4 . 2 1 4 4 4 . . . 1 . 5 4 1 Critical Strikes 105 | 1 6 . . . 3 1 . 3 . 1 4 . . 1 . . 15 36 . 2 2 4 5 5 . 1 2 3 . 5 4 1 Burn 7 | . 5 . . . 1 1 . . . . . . . . . . . . . . . . . . . . . . . . . . Destroy 39 | 1 1 . . . . . . . . . . . . . . . 13 24 . . . . . . . . . . . . . . Blast 1 | . . . . . . . . 1 . . . . . . . . . . . . . . . . . . . . . . . . Smash 47 | . . . . . . . . . . . . . . . . . 1 12 . 2 2 4 5 5 . 1 2 3 . 5 4 1 Sever 10 | . . . . . 2 . . 2 . 1 4 . . 1 . . . . . . . . . . . . . . . . . . Impale 1 | . . . . . . . . . . . . . . . . . 1 . . . . . . . . . . . . . . . Melee Attacks 845 | . . 5 . . 14 5 21 24 1 36 56 62 14 88 36 33 34 42 2 25 12 37 68 23 1 44 7 29 6 53 49 18 Impact 425 | . . . . . . . . . . . . . . . . . 9 42 2 25 12 37 68 23 1 44 7 29 6 53 49 18 Slashing 351 | . . 5 . . 14 5 21 24 1 36 50 42 4 75 36 33 5 . . . . . . . . . . . . . . . Piercing 20 | . . . . . . . . . . . . . . . . . 20 . . . . . . . . . . . . . . . Sneak Attacks 102 | . . . . . 3 2 3 1 1 2 6 3 4 8 4 6 7 2 1 . 1 3 5 1 . . 6 5 . 13 10 5 Combat Hostiles 8 | . . . . . 1 . . . . . . . . 2 . . . . . . . 3 1 1 . . . . . . . . Follow-up Attacks . | . . . . . . . . . . . . . . . . . . . . . . . . . . . . . . . . . Damage Inflicted 29544 | 232 890 493 . 116 1639 2060 1661 2515 92 623 1297 595 . 815 828 1547 1404 2711 122 621 198 1130 1261 777 . 129 639 432 . 1260 1114 2343 Guns 5595 | 226 881 28 . 116 500 866 813 1214 . . . . . . . . 353 598 . . . . . . . . . . . . . . Cannons 1722 | . . . . . 375 498 . 849 . . . . . . . . . . . . . . . . . . . . . . . . Explosions 6284 | . . 305 . . 269 562 570 120 . 391 336 325 . . . 753 128 . . 299 . 331 . 67 . . . . . 75 . 1753 Melee 15884 | . . 140 . . 487 134 269 325 92 232 961 270 . 815 828 794 923 2113 122 322 198 799 1261 710 . 129 639 432 . 1185 1114 590 Ramming 59 | 6 9 20 . . 8 . 9 7 . . . . . . . . . . . . . . . . . . . . . . . . Kinetic 2506 | 226 452 28 . . . . . 849 . . . . . . . . 353 598 . . . . . . . . . . . . . . Thermal 2975 | . 429 . . 116 875 926 27 602 . . . . . . . . . . . . . . . . . . . . . . . . Explosive 6079 | . . 305 . . 269 504 543 . . 391 336 325 . . . 753 128 . . 299 . 331 . 67 . . . . . 75 . 1753 Electromagnetic 2041 | . . . . . . 496 813 732 . . . . . . . . . . . . . . . . . . . . . . . . Impact 9694 | . . . . . . . . . . . . . . . . . 80 2113 122 322 198 799 1261 710 . 129 639 432 . 1185 1114 590 Slashing 5482 | . . 140 . . 487 134 269 325 92 232 961 270 . 815 828 794 135 . . . . . . . . . . . . . . . Piercing 708 | . . . . . . . . . . . . . . . . . 708 . . . . . . . . . . . . . . . Highest Corruption 17 | . . . . . . 6 6 12 . . . 2 . 2 2 . 6 6 6 . . 6 9 17 . . . . . . 2 4 Average Corruption 6 | . . . . . . 5 6 10 . . . 2 . 1 1 . 4 6 2 . . 5 5 10 . . . . . . 2 2 Corruption Purged 8 | . . . . . . . . . . . . . . . 2 . . . 6 . . . . . . . . . . . . . Corruption Blocked . | . . . . . . . . . . . . . . . . . . . . . . . . . . . . . . . . . Effects 366 | . . . . . . 58 54 91 . . . 1 . 7 1 . 10 18 1 . . 41 35 30 . . . . . . . 19 Message Errors 84 | . . . . . . 15 12 21 . . . . . 1 . . 1 3 . . . 16 6 5 . . . . . . . 4 Matter Fused 99 | . . . . . . 16 17 23 . . . 1 . 2 . . 4 2 . . . 9 10 8 . . . . . . . 7 Heat Flow Errors 44 | . . . . . . 6 7 11 . . . . . 1 . . . 2 . . . 3 7 5 . . . . . . . 2 Energy Discharges 50 | . . . . . . 3 7 12 . . . . . 3 1 . 1 1 1 . . 5 8 3 . . . . . . . 5 Parts Rejected 3 | . . . . . . . 1 1 . . . . . . . . . 1 . . . . . . . . . . . . . . Parts Fused 4 | . . . . . . . . 3 . . . . . . . . . . . . . 1 . . . . . . . . . . Data Loss (minor) 32 | . . . . . . 6 2 8 . . . . . . . . 2 2 . . . 5 3 3 . . . . . . . 1 Data Loss (major) 15 | . . . . . . 3 2 2 . . . . . . . . 1 3 . . . 1 . 3 . . . . . . . . Misfires 16 | . . . . . . 6 5 3 . . . . . . . . . 2 . . . . . . . . . . . . . . Alerts 12 | . . . . . . 2 1 2 . . . . . . . . 1 1 . . . 1 1 3 . . . . . . . . Misdirections 1 | . . . . . . . . 1 . . . . . . . . . . . . . . . . . . . . . . . . Weapon Failures 6 | . . . . . . 1 . 4 . . . . . . . . . 1 . . . . . . . . . . . . . . Overload Shots . | . . . . . . . . . . . . . . . . . . . . . . . . . . . . . . . . . Overflow Damage 4134 | . . 50 . . 82 43 56 . . 96 63 79 . 63 180 95 87 226 102 70 102 451 380 384 . 40 147 120 . 563 291 364 Projectiles 10 | . . . . . 3 7 . . . . . . . . . . . . . . . . . . . . . . . . . . Explosions 347 | . . . . . 62 36 23 . . 77 . 59 . . . . . . . . . 60 . . . . . . . . . 30 Melee 3777 | . . 50 . . 17 . 33 . . 19 63 20 . 63 180 95 87 226 102 70 102 391 380 384 . 40 147 120 . 563 291 334 Knockbacks 41 | . . 1 . . . . . 13 . . . . . . . . . 1 . . 1 1 5 1 . 1 3 . . 6 6 2 Impact 28 | . . 1 . . . . . . . . . . . . . . . 1 . . 1 1 5 1 . 1 3 . . 6 6 2 Kinetic 13 | . . . . . . . . 13 . . . . . . . . . . . . . . . . . . . . . . . . Secondary . | . . . . . . . . . . . . . . . . . . . . . . . . . . . . . . . . . Self-Inflicted Damage 232 | . . 49 . . . 43 28 37 . . . . . . . 35 . . . . . . . . . . . . . . . 40 Shots 7 | . . 2 . . . 1 1 1 . . . . . . . 1 . . . . . . . . . . . . . . . 1 Rammed 12 | . 2 6 . . 1 . 1 2 . . . . . . . . . . . . . . . . . . . . . . . . Targets Rammed 15 | 1 3 6 . . 2 . 1 2 . . . . . . . . . . . . . . . . . . . . . . . . Kicked 2 | 1 1 . . . . . . . . . . . . . . . . . . . . . . . . . . . . . . . Crushed 1 | . . . . . 1 . . . . . . . . . . . . . . . . . . . . . . . . . . . Highest Temperature 321 | . 71 . . . 81 213 232 321 . 2 311 . . 155 . 6 . 161 . 76 4 269 265 255 9 14 9 15 2 19 3 254 Average Temperature 54 | . 26 . . . 25 36 80 100 . 2 138 . . 83 . 2 . 71 . 35 2 103 31 56 9 9 9 8 2 15 3 62 Received Heat Transfer 1995 | . 234 . . 12 234 138 138 369 . 81 36 60 12 72 105 153 72 . . 18 27 42 18 12 . 39 18 27 . 6 63 9 Effects 7 | . . . . . . 3 . 3 . . . . . . . . . . . . . . 1 . . . . . . . . . Interference 7 | . . . . . . 3 . 3 . . . . . . . . . . . . . . 1 . . . . . . . . . Siege Activations . | . . . . . . . . . . . . . . . . . . . . . . . . . . . . . . . . . Martial Activations . | . . . . . . . . . . . . . . . . . . . . . . . . . . . . . . . . . Shielding Activations . | . . . . . . . . . . . . . . . . . . . . . . . . . . . . . . . . . Robots Disrupted 1 | . . . . . . . . . . . . . . . . . . . . . . 1 . . . . . . . . . . Combat Hostiles 1 | . . . . . . . . . . . . . . . . . . . . . . 1 . . . . . . . . . . Robots Corrupted 30 | . . . . . . . 1 . . . . . . . . . . 1 1 2 2 . 4 5 . . 3 1 . 4 4 2 Combat Hostiles 14 | . . . . . . . 1 . . . . . . . . . . . . 2 2 . 3 5 . . . . . . 1 . Parts Fried 53 | . . . . . . 1 1 4 . . . . . . . . . 2 . 7 2 1 7 10 . . 5 1 . 7 1 4 Impact Corruptions 73 | . . . . . . . . . . . . . . . . . . 5 3 4 3 7 11 10 . 1 7 2 . 9 7 4 Robots Melted 1 | . . . . . . 1 . . . . . . . . . . . . . . . . . . . . . . . . . . Combat Hostiles 1 | . . . . . . 1 . . . . . . . . . . . . . . . . . . . . . . . . . . Parts Melted 17 | . 4 . . . 2 8 . 2 . . 1 . . . . . . . . . . . . . . . . . . . . . Heat Transferred 5663 | . 1628 . . 148 1517 1419 50 901 . . . . . . . . . . . . . . . . . . . . . . . . Parts Sabotaged . | . . . . . . . . . . . . . . . . . . . . . . . . . . . . . . . . . Parts Stolen . | . . . . . . . . . . . . . . . . . . . . . . . . . . . . . . . . . Parts Stripped . | . . . . . . . . . . . . . . . . . . . . . . . . . . . . . . . . . Power Chain Reactions 4 | . . . . . . 1 1 2 . . . . . . . . . . . . . . . . . . . . . . . . Alert | -11 -10 -10 -10 -9 -8 -8 -8 -8 -7 -7 -7 -7 -6 -6 -6 -6 -5 -5 -5 -5 -4 -4 -3 -3 -2 -2 -2 -2 -1 -1 -1 -1 ------- Run | Yrd Mat Min Exi Min Mat Gar Mat Gar Fac Gar Fac Gar Fac Gar Fac Gar Fac Was Fac Gar Fac Gar Res Gar Res Gar Res Gar Acc Gar Acc Com Maximum Alert Level 5 | . . . . . . 4 3 5 3 5 4 5 3 4 3 4 3 1 . 4 4 4 3 3 2 2 1 3 2 2 2 2 Low Security (%) 22 | 100 100 100 . 100 100 5 . . . . . . . . . . . 90 100 4 . . . . . 40 6 . . . 79 90 Level 1 10 | . . . . . . 18 40 4 . . . . 18 . . 17 20 9 . 1 . . . 20 30 46 93 6 . 36 14 8 Level 2 24 | . . . . . . 22 41 13 . 2 . . 73 13 27 30 78 . . 20 45 . 82 19 69 13 . 58 100 63 6 . Level 3 22 | . . . . . . 27 17 39 100 19 74 34 8 25 72 42 . . . 36 51 31 17 60 . . . 33 . . . . Level 4 17 | . . . . . . 26 . 30 . 55 25 63 . 60 . 10 . . . 36 2 68 . . . . . . . . . . Level 5 1 | . . . . . . . . 12 . 22 . 2 . . . . . . . . . . . . . . . . . . . . High Security . | . . . . . . . . . . . . . . . . . . . . . . . . . . . . . . . . . Max Security . | . . . . . . . . . . . . . . . . . . . . . . . . . . . . . . . . . Peak Influence 1740 | 5 105 27 . 50 146 1561 760 1740 913 1733 1207 1613 846 1565 961 1150 712 248 101 1221 1123 1571 908 815 462 501 388 861 488 673 429 75 Initial 913 | . . 15 . . . 23 760 315 913 623 909 795 846 429 821 286 598 248 . 39 640 766 864 348 447 256 169 268 472 370 403 . Average 650 | 2 27 1 . 25 59 796 469 1070 903 1367 1011 1221 476 1187 737 696 494 91 68 893 760 1152 595 638 415 276 350 625 473 474 105 17 Influence Increases 21913 | 25 298 57 . 50 529 1628 657 1455 7 1200 803 1208 470 1356 349 1054 743 2 216 1322 1038 1140 1160 577 15 701 279 1261 81 853 319 1060 Destroy 0b10 Robot/C 6420 | . 160 . . 40 200 540 380 680 . 500 300 260 120 480 80 260 60 . 60 480 340 360 60 160 . 120 80 260 . 200 80 160 Destroy 0b10 Robot/NC 390 | 25 20 . . . 45 5 50 . 5 . 85 . . . 15 . 55 . 15 . 15 5 20 . . . 10 . . 5 15 . Destroy Leader 854 | . 54 . . 10 70 20 96 30 . 40 96 20 50 30 20 10 28 . 14 30 42 30 28 20 . 10 22 50 . 20 14 . Allied During Kill 3243 | . . . . . . 36 26 37 2 216 176 63 163 294 7 37 . . 88 495 340 247 42 56 . 96 106 297 . 175 84 160 Trap Triggered on 0b10 20 | . . . . . 20 . . . . . . . . . . . . . . . . . . . . . . . . . . . Successful Hack 404 | . . . . . 8 16 5 16 . 37 . . 15 14 12 14 41 . 7 21 . . 80 14 . 40 16 34 . 14 . . Select Force Hacks 120 | . . . . . . . . . . . . . 30 . . . 60 . . . 30 . . . . . . . . . . . Disable Machine 660 | . 15 . . . . 30 45 . . 15 30 . 30 . 105 . 75 . . . 60 15 45 . 15 60 . . . 15 45 60 Anti-Garrison Action 4400 | . . . . . . 900 . 600 . 250 . 400 . 350 . 150 . . . 200 150 350 . 250 . 200 . 350 . 250 . . Destroy Structure 2207 | . 4 42 . . 21 81 40 32 . 97 41 90 2 83 35 133 94 2 2 66 16 73 90 62 . 145 30 225 81 159 36 425 Partial Spotted 885 | . . . . . . . . . . . 30 15 60 105 30 60 30 . 30 15 30 60 225 15 . 15 15 45 . 15 45 45 Lose Combat Pursuer 2310 | . 45 15 . . 165 . 15 60 . 45 45 360 . . 45 390 300 . . 15 15 . 570 . . 15 . . . . . 210 Influence Decreases 21786 | 25 257 98 . 50 493 103 1733 200 857 357 1400 731 1470 404 1505 323 1172 713 160 157 1164 699 2231 247 468 741 223 830 407 643 992 933 Entered New Map 9145 | . . 26 . . . 13 801 170 827 267 824 341 767 184 744 123 542 463 . 17 581 329 672 117 348 86 133 90 317 93 270 . Time Decay 4610 | 25 257 24 . 50 473 . 577 . 30 . 386 . 278 . 286 . 380 230 120 . 198 . 589 . 100 . 90 . 90 . 260 167 Search Patrol Dispatched 300 | . . . . . . . . . . . . . . . . . . . . . . . 300 . . . . . . . . . Lost Part 571 | . . 28 . . 20 10 10 10 . 50 . 50 30 20 30 30 40 . . . 10 50 20 10 . 40 . 20 . 30 13 50 Lost Ally 4860 | . . 20 . . . 80 70 20 . 40 190 340 20 200 20 170 60 20 40 140 100 320 500 120 20 240 . 720 . 520 174 716 Purge Threat 2300 | . . . . . . . 275 . . . . . 375 . 425 . 150 . . . 275 . 150 . . 375 . . . . 275 . Squads Dispatched 71 | . 2 . . . 3 . 5 . 1 . 8 . 6 . 2 . 7 . 1 . 8 . 15 . 1 . . . . . 9 3 Investigation 7 | . 1 . . . . . . . 1 . . . 1 . . . 2 . 1 . 1 . . . . . . . . . . . Extermination 23 | . . . . . . . . . . . 1 . 2 . 1 . 2 . . . 1 . 9 . 1 . . . . . 3 3 Reinforcement 22 | . 1 . . . . . 3 . . . 4 . . . 1 . 2 . . . 3 . 5 . . . . . . . 3 . Assault 7 | . . . . . . . 2 . . . 2 . . . . . . . . . 2 . 1 . . . . . . . . . Garrison 12 | . . . . . 3 . . . . . 1 . 3 . . . 1 . . . 1 . . . . . . . . . 3 . Intercept . | . . . . . . . . . . . . . . . . . . . . . . . . . . . . . . . . . Searches Triggered 3 | . . . . . . . . . . . . . . . . . . . . . . . 3 . . . . . . . . . Unchained Authorized 1 | . . . . . . . . . . . . . . . . . . . . . . . . . . . . . . . 1 . Construction Impeded 2 | . . . . . . . 1 . . . 1 . . . . . . . . . . . . . . . . . . . . . Haulers Reinforced 4 | . . . . . . . . . . . 2 . . . . . . . . . . . 1 . . . . . . . 1 . Active Scanning Responses . | . . . . . . . . . . . . . . . . . . . . . . . . . . . . . . . . . Cargo Convoy Interrupts . | . . . . . . . . . . . . . . . . . . . . . . . . . . . . . . . . . Alert ID Control Effect 222 | . . . . . . . . . . . . . . . . . . . . . . 12 20 14 . 14 . 22 2 15 26 97 Stealth | -11 -10 -10 -10 -9 -8 -8 -8 -8 -7 -7 -7 -7 -6 -6 -6 -6 -5 -5 -5 -5 -4 -4 -3 -3 -2 -2 -2 -2 -1 -1 -1 -1 --------- Run | Yrd Mat Min Exi Min Mat Gar Mat Gar Fac Gar Fac Gar Fac Gar Fac Gar Fac Was Fac Gar Fac Gar Res Gar Res Gar Res Gar Acc Gar Acc Com Distress Signals 68 | . 3 . . . 4 . 4 . . . 4 . 1 . 2 . 3 . 1 . 3 1 6 . 1 . 1 . . . 7 27 Communications Jammed 27 | . . . . . . . . . . . . . . . . . . . . . . . . . 1 . . . . . 26 . Distress Signals 26 | . . . . . . . . . . . . . . . . . . . . . . . . . . . . . . . 26 . Times Spotted 918 | . 18 21 . 2 28 28 32 44 3 26 25 55 16 35 17 48 41 7 1 29 11 40 81 29 9 28 10 44 . 26 40 124 Peak Tracking Total 39 | . 3 13 . 2 4 4 8 4 3 4 5 8 5 5 5 11 17 3 1 7 5 7 7 7 3 4 3 11 . 6 6 39 Tactical Retreats 78 | . 2 5 . . 6 . 1 4 . 1 2 10 . . 2 9 9 2 . 1 1 . 18 . . 1 . . . . . 4 Traps | -11 -10 -10 -10 -9 -8 -8 -8 -8 -7 -7 -7 -7 -6 -6 -6 -6 -5 -5 -5 -5 -4 -4 -3 -3 -2 -2 -2 -2 -1 -1 -1 -1 ------- Run | Yrd Mat Min Exi Min Mat Gar Mat Gar Fac Gar Fac Gar Fac Gar Fac Gar Fac Was Fac Gar Fac Gar Res Gar Res Gar Res Gar Acc Gar Acc Com Traps Triggered 75 | . 1 . . . . 8 . 8 . 6 1 1 . 7 . . 1 . . 4 . 6 4 2 . 6 1 9 . 6 1 3 Indirectly . | . . . . . . . . . . . . . . . . . . . . . . . . . . . . . . . . . Trap Hack Attempts 1 | . . . . . . . . . . . . . . 1 . . . . . . . . . . . . . . . . . . Triggered . | . . . . . . . . . . . . . . . . . . . . . . . . . . . . . . . . . Disarmed . | . . . . . . . . . . . . . . . . . . . . . . . . . . . . . . . . . Reprogrammed . | . . . . . . . . . . . . . . . . . . . . . . . . . . . . . . . . . Reused 2 | . . . . . 2 . . . . . . . . . . . . . . . . . . . . . . . . . . . Traps Extracted . | . . . . . . . . . . . . . . . . . . . . . . . . . . . . . . . . . Installed 2 | . . . . . 2 . . . . . . . . . . . . . . . . . . . . . . . . . . . Triggered 2 | . . . . . 2 . . . . . . . . . . . . . . . . . . . . . . . . . . . Most Traps Carried 3 | . . 3 3 2 2 . . . . . . . . . . . . . . . . . . . . . . . . . . . Machines | -11 -10 -10 -10 -9 -8 -8 -8 -8 -7 -7 -7 -7 -6 -6 -6 -6 -5 -5 -5 -5 -4 -4 -3 -3 -2 -2 -2 -2 -1 -1 -1 -1 ---------- Run | Yrd Mat Min Exi Min Mat Gar Mat Gar Fac Gar Fac Gar Fac Gar Fac Gar Fac Was Fac Gar Fac Gar Res Gar Res Gar Res Gar Acc Gar Acc Com Machines Disabled 106 | . 1 . . . . 10 3 5 . 6 2 6 2 4 7 3 5 . . 4 5 8 3 5 1 8 . 5 . 6 3 4 Max in Single Turn 4 | . 1 . . . . 2 1 1 . 1 1 1 1 1 1 1 4 . . 1 1 1 1 1 1 1 . 1 . 1 1 . Garrison Access 3 | . . . . . . . . . . . . . . . . . . . . . 1 . 2 . . . . . . . . . Garrison Relay 54 | . . . . . . 5 . 4 . 5 . 6 . 4 . 3 . . . 4 . 4 . 5 . 4 . 5 . 5 . . Phase Generator 1 | . . . . . . 1 . . . . . . . . . . . . . . . . . . . . . . . . . . Machines Repaired . | . . . . . . . . . . . . . . . . . . . . . . . . . . . . . . . . . Machines Dismantled . | . . . . . . . . . . . . . . . . . . . . . . . . . . . . . . . . . Machines Sabotaged . | . . . . . . . . . . . . . . . . . . . . . . . . . . . . . . . . . Overloaded Fab Kills . | . . . . . . . . . . . . . . . . . . . . . . . . . . . . . . . . . Hacking | -11 -10 -10 -10 -9 -8 -8 -8 -8 -7 -7 -7 -7 -6 -6 -6 -6 -5 -5 -5 -5 -4 -4 -3 -3 -2 -2 -2 -2 -1 -1 -1 -1 --------- Run | Yrd Mat Min Exi Min Mat Gar Mat Gar Fac Gar Fac Gar Fac Gar Fac Gar Fac Was Fac Gar Fac Gar Res Gar Res Gar Res Gar Acc Gar Acc Com Machines Accessed 106 | . . . 2 . 6 3 4 3 1 3 4 2 10 2 7 2 13 . 4 4 3 1 15 1 4 2 3 2 2 2 . 1 Terminals 66 | . . . . . 5 3 2 3 . 3 1 2 5 2 4 2 6 . 2 4 1 1 8 1 1 2 2 2 1 2 . 1 Fabricators 5 | . . . . . . . . . . . . . 1 . 1 . 1 . 1 . 1 . . . . . . . . . . . Repair Stations 4 | . . . . . . . . . . . 1 . 2 . . . 1 . . . . . . . . . . . . . . . Recycling Units 3 | . . . . . . . . . . . 1 . . . . . 1 . . . . . 1 . . . . . . . . . Scanalyzers 10 | . . . . . . . 1 . . . . . 1 . 1 . 2 . . . . . 3 . 2 . . . . . . . Garrison Access 16 | . . . . . 1 . 1 . 1 . 1 . 1 . 1 . 2 . 1 . 1 . 3 . 1 . 1 . 1 . . . Total Hacks 201 | . . . 2 . 8 7 6 4 3 6 5 3 22 5 18 3 27 . 10 9 5 3 25 1 6 4 6 6 2 4 . 1 Successful 85 | . . . 2 . 7 1 4 1 1 3 2 1 7 1 8 1 12 . 2 3 3 . 10 1 3 3 2 3 1 2 . 1 Failed 114 | . . . . . 1 6 2 3 2 3 3 2 15 4 9 2 14 . 8 6 2 3 15 . 3 1 4 3 1 2 . . Catastrophic 24 | . . . . . . 2 . . . . 1 . 4 1 . 1 3 . 1 3 . 1 4 . 1 . . . 1 1 . . Database Lockouts 2 | . . . . . . . . . . . . . . . 1 . 1 . . . . . . . . . . . . . . . Manual 55 | . . . 1 . 5 . 1 . 2 . 3 . 7 1 5 . 6 . 4 1 1 . 9 . 2 1 3 2 . 1 . . Terminals 128 | . . . . . 7 7 4 4 . 6 1 3 9 5 11 3 12 . 3 9 2 3 16 1 2 4 4 6 1 4 . 1 Fabricators 12 | . . . . . . . . . . . . . 3 . 3 . 3 . 2 . 1 . . . . . . . . . . . Repair Stations 9 | . . . . . . . . . . . 2 . 5 . . . 2 . . . . . . . . . . . . . . . Recycling Units 4 | . . . . . . . . . . . 1 . . . . . 2 . . . . . 1 . . . . . . . . . Scanalyzers 16 | . . . . . . . 1 . . . . . 3 . 3 . 3 . . . . . 4 . 2 . . . . . . . Garrison Access 30 | . . . . . 1 . 1 . 3 . 1 . 2 . 1 . 5 . 5 . 2 . 4 . 2 . 2 . 1 . . . Terminal Hacks 34 | . . . 2 . 1 1 2 1 . 3 . 1 . 1 3 1 4 . 1 3 . . 1 1 . 2 1 2 . 2 . 1 Record 1 | . . . 1 . . . . . . . . . . . . . . . . . . . . . . . . . . . . . Open Door 4 | . . . . . . . . . . 1 . . . . . . . . . 1 . . . . . . . 1 . . . 1 Branch Access Points 2 | . . . . . . . . . . . . . . . . . 1 . . . . . . . . . 1 . . . . . Emergency Access Points 3 | . . . . . . . . . . . . . . . . . . . . . . . . . . 1 . 1 . 1 . . Terminal Index 1 | . . . . . . . . . . . . . . . 1 . . . . . . . . . . . . . . . . . Unreport Threat 3 | . . . . . . . . . . . . . . . 1 . 1 . . . . . 1 . . . . . . . . . Locate Traps 1 | . . . . . . . . . . . . . . . . . 1 . . . . . . . . . . . . . . . Recall Extermination 1 | . . . . . . . . . . . . . . . 1 . . . . . . . . . . . . . . . . . Registered Components 1 | . . . . . . . . . . . . . . . . . . . 1 . . . . . . . . . . . . . Zone Layout 4 | . . . . . 1 . 2 . . . . . . . . . 1 . . . . . . . . . . . . . . . Garrison Registry 4 | . . . . . . . . . . 1 . 1 . . . . . . . 1 . . . 1 . . . . . . . . Patrol Navigation 5 | . . . . . . . . . . . . . . 1 . 1 . . . 1 . . . . . 1 . . . 1 . . Security Stations 3 | . . . . . . 1 . 1 . 1 . . . . . . . . . . . . . . . . . . . . . . Proto ID Catalog 1 | . . . 1 . . . . . . . . . . . . . . . . . . . . . . . . . . . . . Fabricator Hacks 3 | . . . . . . . . . . . . . 1 . . . 1 . . . 1 . . . . . . . . . . . Network Status 3 | . . . . . . . . . . . . . 1 . . . 1 . . . 1 . . . . . . . . . . . Repair Station Hacks 3 | . . . . . . . . . . . . . 2 . . . 1 . . . . . . . . . . . . . . . Scan Component 2 | . . . . . . . . . . . . . 1 . . . 1 . . . . . . . . . . . . . . . Repair 1 | . . . . . . . . . . . . . 1 . . . . . . . . . . . . . . . . . . . Recycling Unit Hacks 2 | . . . . . . . . . . . . . . . . . 1 . . . . . 1 . . . . . . . . . Retrieve Components 2 | . . . . . . . . . . . . . . . . . 1 . . . . . 1 . . . . . . . . . Scanalyzer 7 | . . . . . . . 1 . . . . . 1 . 1 . 1 . . . . . 2 . 1 . . . . . . . Retrieve Study 7 | . . . . . . . 1 . . . . . 1 . 1 . 1 . . . . . 2 . 1 . . . . . . . Garrison Access Hacks 18 | . . . . . 1 . 1 . 1 . 1 . 1 . 1 . 2 . 1 . 1 . 4 . 2 . 1 . 1 . . . Unlock Access 12 | . . . . . 1 . 1 . 1 . 1 . 1 . 1 . . . 1 . 1 . 1 . 1 . 1 . 1 . . . Seal Access 2 | . . . . . . . . . . . . . . . . . . . . . . . 2 . . . . . . . . . Coupler Status 4 | . . . . . . . . . . . . . . . . . 2 . . . . . 1 . 1 . . . . . . . Unauthorized Hacks 18 | . . . . . 5 . . . . . 1 . 2 . 3 . 2 . . . 1 . 2 . . 1 . 1 . . . . Terminals 12 | . . . . . 5 . . . . . 1 . . . 2 . . . . . . . 2 . . 1 . 1 . . . . Assimilate 1 | . . . . . . . . . . . . . . . 1 . . . . . . . . . . . . . . . . . Botnet 4 | . . . . . . . . . . . . . . . . . . . . . . . 2 . . 1 . 1 . . . . Operators 2 | . . . . . . . . . . . 1 . . . 1 . . . . . . . . . . . . . . . . . Skim 5 | . . . . . 5 . . . . . . . . . . . . . . . . . . . . . . . . . . . Fabricators 1 | . . . . . . . . . . . . . . . 1 . . . . . . . . . . . . . . . . . Haulers 1 | . . . . . . . . . . . . . . . 1 . . . . . . . . . . . . . . . . . Repair Stations 1 | . . . . . . . . . . . . . 1 . . . . . . . . . . . . . . . . . . . Mechanics 1 | . . . . . . . . . . . . . 1 . . . . . . . . . . . . . . . . . . . Recycling Units . | . . . . . . . . . . . . . . . . . . . . . . . . . . . . . . . . . Scanalyzers . | . . . . . . . . . . . . . . . . . . . . . . . . . . . . . . . . . Garrison Access 4 | . . . . . . . . . . . . . 1 . . . 2 . . . 1 . . . . . . . . . . . Eject 4 | . . . . . . . . . . . . . 1 . . . 2 . . . 1 . . . . . . . . . . . Data Cores Recovered 2 | . . . . . . . . . . . . . . . . . . . 1 . . . . . . . 1 . . . . . Used . | . . . . . . . . . . . . . . . . . . . . . . . . . . . . . . . . . Hacking Detections 81 | . . . . . 2 3 3 2 1 . 3 2 9 2 5 2 11 . 4 4 3 1 12 . 3 2 3 . 2 2 . . Full Trace Events 6 | . . . . . . 2 . . 1 . . . . 1 . . . . 1 . . 1 . . . . . . . . . . Feedback Events . | . . . . . . . . . . . . . . . . . . . . . . . . . . . . . . . . . Feedback Blocked . | . . . . . . . . . . . . . . . . . . . . . . . . . . . . . . . . . Robot Schematics Acquired . | . . . . . . . . . . . . . . . . . . . . . . . . . . . . . . . . . Robots Built . | . . . . . . . . . . . . . . . . . . . . . . . . . . . . . . . . . Authchips . | . . . . . . . . . . . . . . . . . . . . . . . . . . . . . . . . . Time . | . . . . . . . . . . . . . . . . . . . . . . . . . . . . . . . . . Total Robot Build Rating . | . . . . . . . . . . . . . . . . . . . . . . . . . . . . . . . . . Part Schematics Acquired . | . . . . . . . . . . . . . . . . . . . . . . . . . . . . . . . . . Parts Built . | . . . . . . . . . . . . . . . . . . . . . . . . . . . . . . . . . Authchips . | . . . . . . . . . . . . . . . . . . . . . . . . . . . . . . . . . Time . | . . . . . . . . . . . . . . . . . . . . . . . . . . . . . . . . . Total Part Build Rating . | . . . . . . . . . . . . . . . . . . . . . . . . . . . . . . . . . Part Studies Acquired 7 | . . . . . . . 1 . . . . . 1 . 1 . 1 . . . . . 2 . 1 . . . . . . . Parts Repaired 1 | . . . . . . . . . . . . . 1 . . . . . . . . . . . . . . . . . . . Time 60 | . . . . . . . . . . . . . 60 . . . . . . . . . . . . . . . . . . . Parts Recycled . | . . . . . . . . . . . . . . . . . . . . . . . . . . . . . . . . . Recycled Matter . | . . . . . . . . . . . . . . . . . . . . . . . . . . . . . . . . . Retrieved Matter . | . . . . . . . . . . . . . . . . . . . . . . . . . . . . . . . . . Retrieved Components 9 | . . . . . . . . . . . . . . . . . . . . . . . 9 . . . . . . . . . Parts Scanalyzed . | . . . . . . . . . . . . . . . . . . . . . . . . . . . . . . . . . Part Schematics Acquired . | . . . . . . . . . . . . . . . . . . . . . . . . . . . . . . . . . Parts Damaged . | . . . . . . . . . . . . . . . . . . . . . . . . . . . . . . . . . Bothacking | -11 -10 -10 -10 -9 -8 -8 -8 -8 -7 -7 -7 -7 -6 -6 -6 -6 -5 -5 -5 -5 -4 -4 -3 -3 -2 -2 -2 -2 -1 -1 -1 -1 ------------ Run | Yrd Mat Min Exi Min Mat Gar Mat Gar Fac Gar Fac Gar Fac Gar Fac Gar Fac Was Fac Gar Fac Gar Res Gar Res Gar Res Gar Acc Gar Acc Com Used RIF Installer 14 | . . . . . . 1 . 1 . 1 . 1 . 1 . 1 . . . 2 . 2 . 1 . 1 . 1 . 1 . . Coupler Efficiency 1 | . . . . . . . . . . . . . . . . . . . . . . 1 . . . . . . . . . . Hotswap 1 | . . . . . . . . 1 . . . . . . . . . . . . . . . . . . . . . . . . Code Merge 1 | . . . . . . . . . . . . . . . . . . . . . . . . . . . . . . 1 . . Command Fork 1 | . . . . . . . . . . . . . . 1 . . . . . . . . . . . . . . . . . . Signal Jammer 1 | . . . . . . . . . . . . . . . . . . . . . . . . 1 . . . . . . . . Robot Detection 1 | . . . . . . . . . . . . . . . . . . . . 1 . . . . . . . . . . . . Patrol Navigation 1 | . . . . . . . . . . 1 . . . . . . . . . . . . . . . . . . . . . . Alert ID Control 1 | . . . . . . . . . . . . . . . . . . . . . . 1 . . . . . . . . . . Program Shield 1 | . . . . . . . . . . . . 1 . . . . . . . . . . . . . . . . . . . . Autooverride 2 | . . . . . . . . . . . . . . . . . . . . . . . . . . 1 . 1 . . . . Autoassimilate 2 | . . . . . . . . . . . . . . . . 1 . . . 1 . . . . . . . . . . . . Robots Hacked 397 | . . . . . . 3 6 15 . 12 4 20 13 18 9 8 4 . 1 12 11 16 21 17 2 20 9 36 . 32 32 76 Non-combat 33 | . . . . . . . 2 1 . . . . 6 . 5 . 1 . . . 5 . 2 . . 1 . . . . 9 1 Combat 364 | . . . . . . 3 4 14 . 12 4 20 7 18 4 8 3 . 1 12 6 16 19 17 2 19 9 36 . 32 23 75 Autooverrided 44 | . . . . . . . . . . . . . . . . . . . . . . . . . . . 3 8 . 12 4 17 Autoassimilated 166 | . . . . . . . . . . . . . . . . 1 1 . 1 5 3 8 11 10 1 12 4 23 . 16 18 52 Robot Hacks Applied 218 | . . . . . . 3 11 15 . 12 4 22 16 19 11 8 3 . . 7 9 8 10 8 1 10 2 5 . 6 14 14 parse_system 17 | . . . . . . . 1 . . . . 1 1 2 1 . . . . . . . . 2 . . . . . 2 2 5 find_chute 1 | . . . . . . . . . . . . . . . . . 1 . . . . . . . . . . . . . . . ignore_repairs 2 | . . . . . . . . . . . . . . . . . . . . . 2 . . . . . . . . . . . find_fabricator 1 | . . . . . . . . . . . . . . . . . . . . . . . . . . . . . . . 1 . drop_inventory 7 | . . . . . . . . . . . . . 1 . 2 . . . . . 1 . . . . . . . . . 3 . find_recycling 1 | . . . . . . . . . . . . . 1 . . . . . . . . . . . . . . . . . . . ignore_parts 1 | . . . . . . . . . . . . . 1 . . . . . . . . . . . . . . . . . . . purge_threat 14 | . . . . . . . 2 . . . . . 3 . 2 . . . . . 2 . . . . 3 . . . . 2 . block_reporting 1 | . . . . . . . . . . . . . 1 . . . . . . . . . . . . . . . . . . . map_route 6 | . . . . . . . . . . . . . . . . . . . . . 1 . 2 . . . . . . . 2 1 mark_security 1 | . . . . . . . . . . . . . 1 . . . . . . . . . . . . . . . . . . . find_shortcuts 1 | . . . . . . . 1 . . . . . . . . . . . . . . . . . . . . . . . . . find_garrison 4 | . . . . . . . 1 . . . . . 1 . 1 . . . . . 1 . . . . . . . . . . . scatter_targeting 1 | . . . . . . . 1 . . . . . . . . . . . . . . . . . . . . . . . . . overload_power 1 | . . . . . . 1 . . . . . . . . . . . . . . . . . . . . . . . . . . amplify_resonance 20 | . . . . . . . 3 4 . 1 . 2 . 1 1 1 . . . 1 1 1 3 1 . . . . . . . . reboot_system 7 | . . . . . . 1 . 1 . . . . . 1 1 . . . . . . 1 . . . . 1 . . . . 1 overwrite_iff 26 | . . . . . . . 1 5 . 3 . 5 . 2 . 3 . . . 1 1 2 1 1 . 1 . . . . . . formatsys_low 6 | . . . . . . . 1 1 . . . . . . 1 . . . . . . . . . . . . . . . 3 . formatsys_high 100 | . . . . . . 1 . 4 . 8 4 14 6 13 2 4 2 . . 5 . 4 4 4 1 6 1 5 . 4 1 7 Relay Couplers Released 240 | . . . . . . 18 . 17 . 22 . 26 4 15 . 12 8 . . 17 4 16 1 20 . 17 . 25 . 18 . . Ejected 15 | . . . . . . . . . . . . . 4 . . . 8 . . . 3 . . . . . . . . . . . Machine Destruction 221 | . . . . . . 18 . 17 . 22 . 26 . 15 . 12 . . . 17 1 16 1 20 . 17 . 21 . 18 . . Programmers 4 | . . . . . . . . . . . . . . . . . . . . . . . . . . . . 4 . . . . Attached 123 | . . . . . . 1 3 4 7 7 . 17 2 9 1 5 3 . 1 9 2 7 3 8 1 11 . 6 1 5 3 7 Merged Code Value 69 | . . . . . . . . . . . . . . . . . . . . . . . . . . . . . . 69 . . Fabnet Peak Effective % . | . . . . . . . . . . . . . . . . . . . . . . . . . . . . . . . . . Robots Rewired 22 | . . . . . . 5 . 4 . . . . . . . . . . . 2 1 1 . . . 5 . 4 . . . . Allies Hacked 5 | . . . . . . . . . . . . 1 . . . . . . . . . . . . . . . 1 . . 2 1 Hacks Repelled . | . . . . . . . . . . . . . . . . . . . . . . . . . . . . . . . . . Allies | -11 -10 -10 -10 -9 -8 -8 -8 -8 -7 -7 -7 -7 -6 -6 -6 -6 -5 -5 -5 -5 -4 -4 -3 -3 -2 -2 -2 -2 -1 -1 -1 -1 -------- Run | Yrd Mat Min Exi Min Mat Gar Mat Gar Fac Gar Fac Gar Fac Gar Fac Gar Fac Was Fac Gar Fac Gar Res Gar Res Gar Res Gar Acc Gar Acc Com Total Allies 414 | . . 1 . . . 6 2 14 . 13 4 21 6 17 5 10 3 20 1 16 5 18 17 16 2 29 9 41 . 34 28 76 Largest Group 32 | . . 1 . . . 3 3 8 8 13 12 9 12 18 14 6 2 19 18 22 23 16 14 11 9 23 22 32 16 17 20 26 Highest-Rated Group 2423 | . . 31 . . . 74 69 155 155 356 331 283 418 607 423 126 98 684 633 834 937 771 709 640 477 1585 1522 1810 1099 1168 1110 2423 Highest-Rated Ally 219 | . . 31 . . . 39 39 29 24 39 39 80 80 80 41 29 49 50 49 51 58 58 116 116 64 148 148 148 141 141 219 219 Total Orders 288 | . . . . . . 6 2 10 1 20 16 33 2 18 8 31 1 . . 6 . 15 1 16 . 30 . 21 3 7 16 25 STAY 158 | . . . . . . 3 . 5 1 9 10 24 1 8 6 21 1 . . 5 . 9 1 8 . 12 . 7 1 3 4 19 ROAM 4 | . . . . . . . 2 . . . . . . . . . . . . . . . . 1 . . . . . . 1 . FOLLOW 105 | . . . . . . 3 . 3 . 7 6 9 1 10 1 5 . . . 1 . 6 . 7 . 18 . 14 2 4 5 3 AID 17 | . . . . . . . . 2 . 4 . . . . 1 5 . . . . . . . . . . . . . . 2 3 PICKUP 1 | . . . . . . . . . . . . . . . . . . . . . . . . . . . . . . . 1 . COLLECT 3 | . . . . . . . . . . . . . . . . . . . . . . . . . . . . . . . 3 . Ally Attacks 2490 | . . 3 . . . 44 7 35 2 98 75 78 32 107 13 51 7 13 24 119 89 155 125 65 6 125 17 284 6 186 239 485 Total Damage 86460 | . . 22 . . . 604 128 616 . 2356 2434 1472 907 2591 2301 650 230 214 450 2869 2332 4274 4013 1958 242 3748 386 8832 182 5273 8699 28677 Kills 465 | . . . . . . 4 2 9 . 27 22 10 6 24 15 7 . . 5 21 20 30 21 15 . 22 3 33 2 24 32 111 Allies Corrupted 55 | . . . . . . . . . . . . 1 . . . . . 1 1 . 1 . 10 1 . 3 2 3 . 6 8 18 Allies Melted 3 | . . . . . . . . . . . . . . . . . 2 . . . . . . . . . . 1 . . . . Intel | -11 -10 -10 -10 -9 -8 -8 -8 -8 -7 -7 -7 -7 -6 -6 -6 -6 -5 -5 -5 -5 -4 -4 -3 -3 -2 -2 -2 -2 -1 -1 -1 -1 ------- Run | Yrd Mat Min Exi Min Mat Gar Mat Gar Fac Gar Fac Gar Fac Gar Fac Gar Fac Was Fac Gar Fac Gar Res Gar Res Gar Res Gar Acc Gar Acc Com Active Infowar (turns) 6409 | 92 696 653 368 101 2092 . . 2 . . . . . . . . 568 . . . . . 1837 . . . . . . . . . Sensors 1671 | . . . . . . . . . . . . . . . . . 568 . . . . . 1103 . . . . . . . . . Seismic 3644 | 92 696 653 368 101 935 . . . . . . . . . . . . . . . . . 799 . . . . . . . . . T.N.C. 1204 | . . . . . 1204 . . . . . . . . . . . . . . . . . . . . . . . . . . . Cloaking 2 | . . . . . . . . 2 . . . . . . . . . . . . . . . . . . . . . . . . Robot Analysis Total . | . . . . . . . . . . . . . . . . . . . . . . . . . . . . . . . . . Derelict Logs Recovered 1 | . . 1 . . . . . . . . . . . . . . . . . . . . . . . . . . . . . . Drone Launches . | . . . . . . . . . . . . . . . . . . . . . . . . . . . . . . . . . Drone Recoveries . | . . . . . . . . . . . . . . . . . . . . . . . . . . . . . . . . . Exploration | -11 -10 -10 -10 -9 -8 -8 -8 -8 -7 -7 -7 -7 -6 -6 -6 -6 -5 -5 -5 -5 -4 -4 -3 -3 -2 -2 -2 -2 -1 -1 -1 -1 ------------- Run | Yrd Mat Min Exi Min Mat Gar Mat Gar Fac Gar Fac Gar Fac Gar Fac Gar Fac Was Fac Gar Fac Gar Res Gar Res Gar Res Gar Acc Gar Acc Com Turns Passed 31337 | 103 977 653 368 101 2093 2447 1765 2388 71 1114 908 1229 613 1546 630 729 891 603 255 1124 413 1505 1849 853 202 1100 184 1484 186 933 849 1171 Spaces Moved 39206 | 17 488 373 228 58 602 893 606 901 70 1294 1696 1971 980 2148 995 1260 2017 519 584 1103 687 1590 5163 1500 438 1949 400 2398 242 1891 1871 2274 Core . | . . . . . . . . . . . . . . . . . . . . . . . . . . . . . . . . . Treads 4033 | . 372 373 228 58 602 893 606 901 . . . . . . . . . . . . . . . . . . . . . . . . Legs 133 | 17 116 . . . . . . . . . . . . . . . . . . . . . . . . . . . . . . . Wheels . | . . . . . . . . . . . . . . . . . . . . . . . . . . . . . . . . . Hover . | . . . . . . . . . . . . . . . . . . . . . . . . . . . . . . . . . Flight 35040 | . . . . . . . . . 70 1294 1696 1971 980 2148 995 1260 2017 519 584 1103 687 1590 5163 1500 438 1949 400 2398 242 1891 1871 2274 Fastest Speed 7 | 120 120 160 160 160 160 240 210 210 34 32 30 29 32 26 26 26 23 29 29 29 29 29 19 24 24 22 22 20 20 7 19 14 Average Speed 44 | 120 150 160 160 160 208 240 216 210 34 32 31 35 32 27 26 26 26 29 30 29 29 32 23 24 24 22 22 20 20 18 20 21 Slowest Speed 250 | 120 160 160 160 160 240 240 250 210 34 34 105 107 35 35 105 30 96 29 32 29 29 117 79 24 25 28 22 24 20 20 79 27 Overloaded Moves 34 | . . . . . . . . . . . . . . . . . . . . . . . 28 . . . . . . 2 . 4 Propulsion Burnouts . | . . . . . . . . . . . . . . . . . . . . . . . . . . . . . . . . . Robots Hopped 267 | . . . . . . . . . 2 5 13 7 1 . 18 5 19 . 1 2 10 1 64 15 3 14 6 31 6 7 23 14 Potential Cave-ins 4 | . . . . . . . 4 . . . . . . . . . . . . . . . . . . . . . . . . . Cave-ins Triggered 1 | . . . . . . . . . . . . . . . . . 1 . . . . . . . . . . . . . . . Exploration Rate (%) 51 | 2 75 73 60 17 48 90 54 75 1 69 30 87 24 88 20 59 37 94 14 78 18 74 70 63 10 92 11 97 3 92 33 28 Regions Visited 32 Branch Regions 4 Pre-discovered Areas 2 | . . . 1 . 1 . . . . . . . . . . . . . . . . . . . . . . . . . . . Known Exits Taken 12 | . . . . . 1 . 1 . 1 . 1 . 1 . 1 . . . 1 . 1 . 1 . 1 . 1 . 1 . . . Unknown Exits Taken 6 | 1 1 1 1 1 . . . . . . . . . . . . . . . . . . . . . . . . . . 1 . Scrap Searched 2 | . . 1 . 1 . . . . . . . . . . . . . . . . . . . . . . . . . . . . Spaces Dug 301 | . . 1 . . 3 2 12 10 . 12 8 15 2 38 9 11 17 1 1 7 6 7 43 7 . 29 1 12 5 21 9 12 Terrain Destroyed 935 | . . 51 . . 19 108 41 28 . 62 48 61 2 38 9 168 53 1 1 14 6 23 44 12 . 29 1 12 5 21 9 69 Melee 300 | . . 1 . . 2 2 12 10 . 12 8 15 2 38 9 11 17 1 1 7 6 7 43 7 . 29 1 12 5 21 9 12 Projectile 13 | . . . . . 7 . 5 . . . . . . . . . . . . . . . 1 . . . . . . . . . AOE 622 | . . 50 . . 10 106 24 18 . 50 40 46 . . . 157 36 . . 7 . 16 . 5 . . . . . . . 57 Terrain Rammed . | . . . . . . . . . . . . . . . . . . . . . . . . . . . . . . . . . Walls Destroyed . | . . . . . . . . . . . . . . . . . . . . . . . . . . . . . . . . . Machines Disabled . | . . . . . . . . . . . . . . . . . . . . . . . . . . . . . . . . . Actions | -11 -10 -10 -10 -9 -8 -8 -8 -8 -7 -7 -7 -7 -6 -6 -6 -6 -5 -5 -5 -5 -4 -4 -3 -3 -2 -2 -2 -2 -1 -1 -1 -1 --------- Run | Yrd Mat Min Exi Min Mat Gar Mat Gar Fac Gar Fac Gar Fac Gar Fac Gar Fac Was Fac Gar Fac Gar Res Gar Res Gar Res Gar Acc Gar Acc Com Total 50684 | 72 628 411 232 69 1373 1095 967 1203 121 1930 1993 2414 1260 2983 1284 1564 2236 786 660 1847 861 2492 5600 1930 525 2500 476 3321 362 2375 2223 2891 Wait 8298 | 37 63 2 . . 648 44 214 76 19 463 226 249 227 571 237 204 92 115 53 620 149 735 344 353 82 412 63 756 120 355 265 504 Move 38701 | 16 487 372 227 57 602 892 606 900 65 1285 1669 1957 977 2146 959 1249 1981 518 582 1098 669 1587 5041 1473 432 1926 387 2351 232 1879 1832 2247 Hop 207 | . . . . . . . . . 2 3 13 6 1 . 17 5 17 . 1 2 7 1 57 10 2 8 6 15 3 4 15 12 Pick Up 233 | 2 12 6 3 2 22 16 10 17 1 11 2 14 3 10 3 6 13 3 4 3 2 8 6 11 1 9 1 17 . 5 6 4 Fast Attach 180 | . 1 2 . 1 11 2 9 2 1 8 7 18 6 11 3 5 17 2 4 5 1 4 19 4 2 15 . 4 . 4 7 5 Attach 124 | 1 . 7 . 2 6 6 3 6 8 3 1 10 2 5 2 8 12 1 2 1 3 5 5 3 1 7 . 3 1 2 3 5 Detach 93 | . . . . 2 4 2 1 3 3 5 1 13 2 4 4 2 15 1 2 4 . . 5 3 . 8 . 2 . 1 1 5 Swap 231 | . 6 . . 1 10 19 34 45 4 4 4 23 7 11 4 8 4 2 2 5 1 2 5 5 1 1 2 5 . 5 2 9 Drop 258 | . 5 1 2 4 21 18 20 8 17 8 8 16 5 11 1 8 17 2 7 2 . 4 18 8 1 12 2 13 . 3 11 5 Fire 817 | 15 51 10 . . 31 64 48 106 . 27 4 21 11 14 16 34 33 100 . 16 15 16 22 20 1 35 3 18 . 13 24 49 Melee 845 | . . 5 . . 14 5 21 24 1 36 56 62 14 88 36 33 34 42 2 25 12 37 68 23 1 44 7 29 6 53 49 18 Ram . | . . . . . . . . . . . . . . . . . . . . . . . . . . . . . . . . . Kick 2 | 1 1 . . . . . . . . . . . . . . . . . . . . . . . . . . . . . . . Crush 13 | . 2 6 . . 2 . 1 2 . . . . . . . . . . . . . . . . . . . . . . . . Escape Stasis 544 | . . . . . . 12 . 12 . 74 . 15 . 98 . . . . . 60 . 90 . 11 . 16 . 100 . 40 . 16 Rewire 135 | . . . . . . 15 . 2 . 3 2 10 5 13 2 2 1 . 1 6 2 3 10 6 1 7 5 8 . 11 8 12 Trap 3 | . . . . . 2 . . . . . . . . 1 . . . . . . . . . . . . . . . . . . Miscellaneous . | . . . . . . . . . . . . . . . . . . . . . . . . . . . . . . . . . Route ------- -11/Scrapyard -10/Materials (discovered 5 exits: [*Mat x2] / [*Min x2] / [*Sub]) -10/Mines (discovered 3 exits: [*Mat x2] / *Exi) -10/Exiles (discovered 2 exits: [*Min x2]) -9/Mines -8/Materials (discovered 4 exits: *Fac x2 / *Sto / Gar) -8/Garrison (discovered 3 exits: *Mat x3) -8/Materials (discovered 3 exits: Fac / *Sto / Gar) -8/Garrison (discovered 3 exits: *Fac x3) -7/Factory (discovered 3 exits: Fac / Low / Gar) -7/Garrison (discovered 3 exits: *Fac x3) -7/Factory (discovered 2 exits: *Fac / Gar) -7/Garrison (discovered 3 exits: *Fac x3) -6/Factory (discovered 2 exits: [*Low] / Gar) -6/Garrison (discovered 4 exits: *Fac x4) -6/Factory -6/Garrison (discovered 2 exits: *Fac x2) -5/Factory (discovered 3 exits: *Fac / *Upp x2) -5/Waste -5/Factory -5/Garrison (discovered 3 exits: *Fac x3) -4/Factory (discovered 3 exits: *Res / [*Upp] / Gar) -4/Garrison (discovered 3 exits: *Res x3) -3/Research (discovered 2 exits: *Res / Gar) -3/Garrison (discovered 3 exits: *Res x3) -2/Research -2/Garrison (discovered 4 exits: *Acc x3 / *Res) -2/Research (discovered 3 exits: Tes x2 / Gar) -2/Garrison (discovered 3 exits: *Acc x3) -1/Access -1/Garrison (discovered 3 exits: [*Acc x3]) -1/Access -1/Command (discovered 2 exits: [*Sur x2]) 0b11 Command History --------- Turn | Location | Event 7 | -11/Scrapyard | Discovered new exit (range 2) 104 | -11/Scrapyard | Entered Materials 339 | -10/Materials | Discovered new exit (range 14) 349 | -10/Materials | Build established: Mutant 415 | -10/Materials | Discovered new exit (range 3) 517 | -10/Materials | Discovered new exit (range 8) 802 | -10/Materials | Discovered new exit (range 14) 951 | -10/Materials | Discovered new exit (range 10) 1081 | -10/Materials | Entered Mines 1110 | -10/Mines | Discovered new exit (range 9) 1125 | -10/Mines | A weapon hastily lodged in a ceiling crevice suddenly fell to the ground 1274 | -10/Mines | Assembled infested the area 1279 | -10/Mines | Assisted by a Guerilla fighting off Assembled 1319 | -10/Mines | Core integrity fell below 50% 1349 | -10/Mines | Lost 5 parts (1p2n2w) 1357 | -10/Mines | Received a Rocket Launcher from a helpful Derelict 1475 | -10/Mines | Received a Mining Laser from a helpful Derelict 1479 | -10/Mines | Discovered new exit (range 5) 1583 | -10/Mines | Core integrity fell below 20% 1622 | -10/Mines | Destroyed 7 combat bots 1632 | -10/Mines | Lost 4 parts (1p1n2w) 1642 | -10/Mines | Found a hidden stash of uninstalled traps 1726 | -10/Mines | Deemed a non-threat by the Exiles lab entrance 1728 | -10/Mines | Discovered new exit (range 5) 1734 | -10/Mines | Entered Exiles 1758 | -10/Exiles | Discovered new exit (range 15) 1778 | -10/Exiles | Met 8R-AWN 1800 | -10/Exiles | Met EX-HEX 1848 | -10/Exiles | Met EX-BIN 1866 | -10/Exiles | Aligned with FarCom system 1867 | -10/Exiles | Given EX-Vault access code 1904 | -10/Exiles | Opened EX-Vault 1917 | -10/Exiles | Found AWS/Thermal 1925 | -10/Exiles | Found PSU Rigger 1931 | -10/Exiles | Found Cloak of Protection 1961 | -10/Exiles | Warned to stay clear of 0b10 Research branches 2009 | -10/Exiles | Met EX-DEC 2015 | -10/Exiles | Learned location of Zion (-6) 2081 | -10/Exiles | Discovered new exit (range 14) 2102 | -10/Exiles | Stole three prototypes: Cloak of Protection, PSU Rigger, AWS/Thermal 2102 | -10/Exiles | Entered Mines 2110 | -9/Mines | Discovered new exit (range 15) 2125 | -9/Mines | Met a Derelict bent on vengeance 2203 | -9/Mines | Entered Materials 2203 | -8/Materials | Evolved 4 slots: Propulsion x1, Utility x3 2204 | -8/Materials | Identified exit to Storage 2490 | -8/Materials | Build established: Scavenger-Mutant 2846 | -8/Materials | Discovered new exit (range 16) 3020 | -8/Materials | Build established: Mutant 3513 | -8/Materials | Garrison activated, responded to threat 3615 | -8/Materials | Discovered new exit (range 16) 4114 | -8/Materials | Learned Storage stockpile data 4163 | -8/Materials | Learned Factory trap positions 4204 | -8/Materials | Learned location of 2 exits from Lower Caves 4234 | -8/Materials | Learned location of Lower Caves (-6) 4254 | -8/Materials | Learned Storage trap positions 4264 | -8/Materials | Learned location of 2 exits from Factory 4285 | -8/Materials | Learned Storage stockpile data 4295 | -8/Materials | Identified exit to Garrison 4296 | -8/Materials | Entered Garrison 4324 | -8/Garrison | Triggered checkpoint 4370 | -8/Garrison | Triggered checkpoint 4389 | -8/Garrison | Garrison Relay disabled 4409 | -8/Garrison | Learned Materials security intel 4726 | -8/Garrison | Triggered checkpoint 4789 | -8/Garrison | Triggered checkpoint 4796 | -8/Garrison | Triggered checkpoint 4869 | -8/Garrison | Garrison Relay disabled 5000 | -8/Garrison | Discovered new exit (range 8) 5065 | -8/Garrison | Installed Relay Interface Framework 5101 | -8/Garrison | Phase Generator disabled 5186 | -8/Garrison | Triggered checkpoint 5262 | -8/Garrison | Garrison Relay disabled 5362 | -8/Garrison | Triggered checkpoint 5365 | -8/Garrison | Build established: Bothacker-Mutant 5458 | -8/Garrison | Discovered new exit (range 13) 5716 | -8/Garrison | Garrison Relay disabled 6070 | -8/Garrison | Discovered new exit (range 10) 6163 | -8/Garrison | Garrison Relay disabled 6743 | -8/Garrison | Entered Materials 6743 | -8/Materials | Accompanied by 2 allies 7143 | -8/Materials | First assault squad dispatched 8054 | -8/Materials | Destroyed 7 combat bots 8121 | -8/Materials | Discovered exit to Storage (range 9) 8121 | -8/Materials | Discovered new exit (range 17) 8508 | -8/Materials | Identified exit to Garrison 8508 | -8/Materials | Entered Garrison 8554 | -8/Garrison | Expanded RIF knowledge: Hotswap 8668 | -8/Garrison | Triggered checkpoint 8710 | -8/Garrison | Garrison Relay disabled 8748 | -8/Garrison | Learned Factory security intel 8881 | -8/Garrison | Triggered checkpoint 8882 | -8/Garrison | Triggered checkpoint 9015 | -8/Garrison | Triggered checkpoint 9072 | -8/Garrison | Discovered new exit (range 14) 9245 | -8/Garrison | System corruption reached 10% 9250 | -8/Garrison | Core integrity fell below 50% 9449 | -8/Garrison | Garrison Relay disabled 9456 | -8/Garrison | Triggered checkpoint 9677 | -8/Garrison | Triggered checkpoint 9775 | -8/Garrison | Discovered new exit (range 10) 9823 | -8/Garrison | Triggered checkpoint 9874 | -8/Garrison | Triggered checkpoint 9920 | -8/Garrison | Garrison Relay disabled 10044 | -8/Garrison | Triggered checkpoint 10101 | -8/Garrison | Garrison Relay disabled 10240 | -8/Garrison | Triggered checkpoint 10359 | -8/Garrison | Discovered new exit (range 15) 10458 | -8/Garrison | Triggered checkpoint 10896 | -8/Garrison | Entered Factory 10896 | -7/Factory | Accompanied by 8 allies 10896 | -7/Factory | Evolved 2 slots: Utility x2 10897 | -7/Factory | Identified exit to Lower Caves 10897 | -7/Factory | Identified exit to Factory 10898 | -7/Factory | Loaded intel: 117 trap records 10898 | -7/Factory | FarCom data flow suspended 10957 | -7/Factory | Identified exit to Garrison 10967 | -7/Factory | Entered Garrison 10967 | -7/Garrison | Accompanied by 8 allies 10990 | -7/Garrison | Triggered checkpoint 11015 | -7/Garrison | Garrison Relay disabled 11119 | -7/Garrison | Triggered checkpoint 11153 | -7/Garrison | Triggered checkpoint 11185 | -7/Garrison | Triggered checkpoint 11196 | -7/Garrison | Lost 5 allies 11235 | -7/Garrison | Triggered checkpoint 11387 | -7/Garrison | Garrison Relay disabled 11401 | -7/Garrison | Discovered new exit (range 14) 11405 | -7/Garrison | Learned Factory security intel 11479 | -7/Garrison | Discovered new exit (range 26) 11479 | -7/Garrison | Discovered new exit (range 42) 11479 | -7/Garrison | Discovered new exit (range 50) 11494 | -7/Garrison | Garrison Relay disabled 11539 | -7/Garrison | Rescued a captive Derelict 11542 | -7/Garrison | Rescued a captive Derelict 11692 | -7/Garrison | Build established: Bothacker-Sprinter 11771 | -7/Garrison | Garrison Relay disabled 11805 | -7/Garrison | Triggered checkpoint 11835 | -7/Garrison | Expanded RIF knowledge: Patrol Navigation 11838 | -7/Garrison | Garrison Relay disabled 11869 | -7/Garrison | Triggered checkpoint 12081 | -7/Garrison | Entered Factory 12081 | -7/Factory | Accompanied by 12 allies 12129 | -7/Factory | Discovered exit to Factory (range 14) 12142 | -7/Factory | Build established: Commander-Sprinter 12481 | -7/Factory | First assault squad dispatched 12588 | -7/Factory | Allied Derelicts emerged from ambush trap array 12871 | -7/Factory | Identified exit to Garrison 12936 | -7/Factory | Build established: Bothacker-Sprinter 12987 | -7/Factory | Garrison activated, responded to threat 12989 | -7/Factory | Entered Garrison 12989 | -7/Garrison | Accompanied by 6 allies 12995 | -7/Garrison | Triggered checkpoint 13006 | -7/Garrison | Garrison Relay disabled 13105 | -7/Garrison | Discovered exit to Factory (range 34) 13105 | -7/Garrison | Discovered exit to Factory (range 70) 13105 | -7/Garrison | Discovered exit to Factory (range 93) 13117 | -7/Garrison | Triggered checkpoint 13141 | -7/Garrison | Triggered checkpoint 13165 | -7/Garrison | Lost 5 allies 13187 | -7/Garrison | Triggered checkpoint 13207 | -7/Garrison | Garrison Relay disabled 13215 | -7/Garrison | Garrison Relay disabled 13258 | -7/Garrison | Expanded RIF knowledge: Program Shield 13282 | -7/Garrison | Garrison Relay disabled 13293 | -7/Garrison | Garrison Relay disabled 13311 | -7/Garrison | Triggered checkpoint 13355 | -7/Garrison | Triggered checkpoint 13684 | -7/Garrison | Build established: Botlord-Mutant 13739 | -7/Garrison | Triggered checkpoint 13831 | -7/Garrison | Triggered checkpoint 13833 | -7/Garrison | Garrison Relay disabled 13836 | -7/Garrison | Found embedded Infiltrators 13867 | -7/Garrison | Triggered checkpoint 14218 | -7/Garrison | Entered Factory 14218 | -6/Factory | Accompanied by 7 allies 14218 | -6/Factory | Evolved 2 slots: Propulsion x1, Utility x1 14283 | -6/Factory | Discovered new exit (range 14) 14515 | -6/Factory | Build established: Botlord-Sprinter 14735 | -6/Factory | Repaired Imp. VTOL Module 14783 | -6/Factory | Lost 3 parts (1p1n1u) 14790 | -6/Factory | Identified exit to Garrison 14831 | -6/Factory | Entered Garrison 14831 | -6/Garrison | Accompanied by 12 allies 14865 | -6/Garrison | Garrison Relay disabled 14873 | -6/Garrison | Triggered checkpoint 14963 | -6/Garrison | Triggered checkpoint 15013 | -6/Garrison | Triggered checkpoint 15071 | -6/Garrison | Lost 3 allies 15087 | -6/Garrison | Triggered checkpoint 15102 | -6/Garrison | Garrison Relay disabled 15137 | -6/Garrison | Triggered checkpoint 15137 | -6/Garrison | Discovered new exit (range 15) 15207 | -6/Garrison | Expanded RIF knowledge: Command Fork 15335 | -6/Garrison | Discovered new exit (range 10) 15359 | -6/Garrison | Triggered checkpoint 15373 | -6/Garrison | Build established: Commander-Sprinter 15435 | -6/Garrison | Triggered checkpoint 15475 | -6/Garrison | Garrison Relay disabled 15626 | -6/Garrison | Triggered checkpoint 15660 | -6/Garrison | Garrison Relay disabled 15669 | -6/Garrison | Triggered checkpoint 15677 | -6/Garrison | Discovered new exit (range 5) 15737 | -6/Garrison | Lost 3 allies 15757 | -6/Garrison | Discovered new exit (range 10) 16013 | -6/Garrison | Build established: Botlord-Sprinter 16377 | -6/Garrison | Entered Factory 16377 | -6/Factory | Accompanied by 14 allies 16397 | -6/Factory | Central database locked down 16674 | -6/Factory | Identified exit to Garrison 17007 | -6/Factory | Spotted B-75 Beast 17007 | -6/Factory | Entered Garrison 17007 | -6/Garrison | Accompanied by 3 allies 17040 | -6/Garrison | Garrison Relay disabled 17056 | -6/Garrison | Triggered checkpoint 17124 | -6/Garrison | Triggered checkpoint 17530 | -6/Garrison | Discovered new exit (range 14) 17581 | -6/Garrison | Expanded RIF knowledge: Autoassimilate 17585 | -6/Garrison | Garrison Relay disabled 17595 | -6/Garrison | Triggered checkpoint 17602 | -6/Garrison | Triggered checkpoint 17613 | -6/Garrison | Triggered checkpoint 17629 | -6/Garrison | Triggered checkpoint 17641 | -6/Garrison | Garrison Relay disabled 17657 | -6/Garrison | Discovered new exit (range 8) 17725 | -6/Garrison | Triggered checkpoint 17736 | -6/Garrison | Lost 3 allies 17736 | -6/Garrison | Entered Factory 17736 | -5/Factory | Evolved 2 slots: Propulsion x1, Utility x1 17759 | -5/Factory | Discovered new exit (range 4) 17772 | -5/Factory | Identified exit to Upper Caves 17881 | -5/Factory | Central database locked down 18339 | -5/Factory | Crushed by falling debris 18349 | -5/Factory | Garrison activated, responded to threat 18370 | -5/Factory | Lost 3 parts (3u) 18416 | -5/Factory | Discovered new exit (range 9) 18627 | -5/Factory | Manually triggered Chute Trap 18627 | -5/Factory | Sucked down chute 18627 | -5/Factory | Entered Waste 18628 | -5/Waste | Met a frightened Derelict 18633 | -5/Waste | Spotted C-40 Crusher 18639 | -5/Waste | Spotted C-40 Crusher 18656 | -5/Waste | Spotted C-40 Crusher 18673 | -5/Waste | Destroyed C-40 Crusher 18685 | -5/Waste | Spotted C-40 Crusher 18688 | -5/Waste | Spotted C-40 Crusher 18703 | -5/Waste | Destroyed C-40 Crusher 18736 | -5/Waste | Spotted C-40 Crusher 18833 | -5/Waste | Destroyed C-40 Crusher 18896 | -5/Waste | Destroyed C-40 Crusher 18926 | -5/Waste | Destroyed C-40 Crusher 19068 | -5/Waste | Destroyed C-40 Crusher 19087 | -5/Waste | Warlord forces began an assault 19122 | -5/Waste | Discovered new exit (range 12) 19230 | -5/Waste | Entered Factory 19230 | -5/Factory | Accompanied by 17 allies 19325 | -5/Factory | Found Prototype Launcher 19325 | -5/Factory | Identified Mni. Smartbomb Launcher 19485 | -5/Factory | Identified exit to Garrison 19485 | -5/Factory | Entered Garrison 19485 | -5/Garrison | Accompanied by 15 allies 19497 | -5/Garrison | Discovered new exit (range 25) 19497 | -5/Garrison | Discovered new exit (range 45) 19497 | -5/Garrison | Discovered new exit (range 53) 19507 | -5/Garrison | Triggered checkpoint 19510 | -5/Garrison | Triggered checkpoint 19565 | -5/Garrison | Triggered checkpoint 19585 | -5/Garrison | Lost 7 allies 19623 | -5/Garrison | Expanded RIF knowledge: Autoassimilate 19689 | -5/Garrison | Triggered checkpoint 19691 | -5/Garrison | Expanded RIF knowledge: Robot Detection 19702 | -5/Garrison | Garrison Relay disabled 19790 | -5/Garrison | Garrison Relay disabled 20029 | -5/Garrison | Triggered checkpoint 20048 | -5/Garrison | Garrison Relay disabled 20149 | -5/Garrison | Triggered checkpoint 20213 | -5/Garrison | Garrison Relay disabled 20609 | -5/Garrison | Entered Factory 20609 | -4/Factory | Accompanied by 22 allies 20609 | -4/Factory | Evolved 2 slots: Utility x2 20622 | -4/Factory | Discovered new exit (range 15) 20630 | -4/Factory | Discovered new exit (range 15) 20738 | -4/Factory | Garrison activated, responded to threat 20797 | -4/Factory | Spotted B-86 Titan 21007 | -4/Factory | Identified exit to Garrison 21022 | -4/Factory | Entered Garrison 21022 | -4/Garrison | Accompanied by 15 allies 21102 | -4/Garrison | Triggered checkpoint 21117 | -4/Garrison | Triggered checkpoint 21131 | -4/Garrison | Spotted B-86 Titan 21144 | -4/Garrison | Allies destroyed B-86 Titan 21156 | -4/Garrison | Triggered checkpoint 21166 | -4/Garrison | Lost 13 allies 21203 | -4/Garrison | Triggered checkpoint 21236 | -4/Garrison | Lost 3 allies 21287 | -4/Garrison | Expanded RIF knowledge: Alert ID Control 21368 | -4/Garrison | Garrison Relay disabled 21482 | -4/Garrison | Triggered checkpoint 21545 | -4/Garrison | Garrison Relay disabled 21560 | -4/Garrison | Discovered new exit (range 15) 21833 | -4/Garrison | Expanded RIF knowledge: Coupler Efficiency 21975 | -4/Garrison | Discovered new exit (range 12) 21979 | -4/Garrison | Rescued a captive Derelict 21981 | -4/Garrison | Rescued a captive Derelict 22012 | -4/Garrison | Triggered checkpoint 22026 | -4/Garrison | Garrison Relay disabled 22101 | -4/Garrison | Discovered new exit (range 10) 22312 | -4/Garrison | Triggered checkpoint 22332 | -4/Garrison | Garrison Relay disabled 22390 | -4/Garrison | Lost 3 allies 22527 | -4/Garrison | Entered Research 22527 | -3/Research | Accompanied by 13 allies 22527 | -3/Research | Evolved 2 slots: Propulsion x1, Utility x1 22739 | -3/Research | Lost 3 allies 22768 | -3/Research | Spotted B-86 Titan 22777 | -3/Research | First assault squad dispatched 22892 | -3/Research | Lost 3 allies 23003 | -3/Research | Discovered new exit (range 15) 23266 | -3/Research | Lost 6 allies 23357 | -3/Research | Identified exit to Research 23665 | -3/Research | Lost 3 allies 23777 | -3/Research | Search patrols dispatched 24027 | -3/Research | Search patrols dispatched 24277 | -3/Research | Search patrols dispatched 24362 | -3/Research | Spotted B-86 Titan 24364 | -3/Research | Assimilated Titan 8a with formatsys_high 24368 | -3/Research | Identified exit to Garrison 24376 | -3/Research | Entered Garrison 24376 | -3/Garrison | Accompanied by 2 allies 24455 | -3/Garrison | Lost 4 allies 24492 | -3/Garrison | Triggered checkpoint 24494 | -3/Garrison | Garrison Relay disabled 24505 | -3/Garrison | Discovered exit to Research (range 51) 24505 | -3/Garrison | Discovered exit to Research (range 51) 24505 | -3/Garrison | Discovered exit to Research (range 55) 24648 | -3/Garrison | Triggered checkpoint 24657 | -3/Garrison | Garrison Relay disabled 24686 | -3/Garrison | Garrison Relay disabled 24714 | -3/Garrison | Garrison Relay disabled 24892 | -3/Garrison | Triggered checkpoint 24996 | -3/Garrison | Garrison Relay disabled 25002 | -3/Garrison | Expanded RIF knowledge: Signal Jamming 25028 | -3/Garrison | Triggered checkpoint 25077 | -3/Garrison | System corruption reached 10% 25229 | -3/Garrison | Entered Research 25229 | -2/Research | Accompanied by 9 allies 25229 | -2/Research | Evolved 2 slots: Utility x2 25262 | -2/Research | Spotted B-90 Cyclops 25358 | -2/Research | Lost 4 allies 25401 | -2/Research | Identified exit to Garrison 25431 | -2/Research | Entered Garrison 25431 | -2/Garrison | Accompanied by 4 allies 25438 | -2/Garrison | Found Unknown Device 25438 | -2/Garrison | Identified Adv. Force Booster 25451 | -2/Garrison | Triggered checkpoint 25470 | -2/Garrison | Garrison Relay disabled 25569 | -2/Garrison | Spotted B-90 Cyclops 25576 | -2/Garrison | Assimilated Cyclops 9a with formatsys_high 25577 | -2/Garrison | Triggered checkpoint 25583 | -2/Garrison | Triggered checkpoint 25609 | -2/Garrison | Triggered checkpoint 25623 | -2/Garrison | Triggered checkpoint 25647 | -2/Garrison | Lost 5 allies 25653 | -2/Garrison | Triggered checkpoint 25660 | -2/Garrison | Garrison Relay disabled 25677 | -2/Garrison | Discovered new exit (range 12) 25739 | -2/Garrison | QS Assembler disabled 25764 | -2/Garrison | Found Prototype Device 25764 | -2/Garrison | Identified Exp. Focal Shield 25767 | -2/Garrison | Found Prototype Device 25767 | -2/Garrison | Identified Imp. Particle Accelerator 25810 | -2/Garrison | Rescued a captive Derelict 25811 | -2/Garrison | Rescued a captive Derelict 25816 | -2/Garrison | Discovered new exit (range 10) 25823 | -2/Garrison | Triggered checkpoint 25834 | -2/Garrison | Garrison Relay disabled 25862 | -2/Garrison | Spotted B-75 Beast 25865 | -2/Garrison | Triggered checkpoint 25903 | -2/Garrison | Discovered new exit (range 6) 25928 | -2/Garrison | Rewired B-86 Titan 25929 | -2/Garrison | Allies destroyed B-75 Beast 25930 | -2/Garrison | Rewired B-90 Cyclops 26054 | -2/Garrison | Discovered new exit (range 14) 26144 | -2/Garrison | Expanded RIF knowledge: Autooverride 26361 | -2/Garrison | Lost 6 allies 26385 | -2/Garrison | Found Relay Coupler [Proto] 26386 | -2/Garrison | Found Relay Coupler [Proto] 26387 | -2/Garrison | Found Relay Coupler [Proto] 26389 | -2/Garrison | Found Relay Coupler [Proto] 26423 | -2/Garrison | Garrison Relay disabled 26531 | -2/Garrison | Entered Research 26531 | -2/Research | Accompanied by 16 allies 26596 | -2/Research | Identified exit to Testing 26676 | -2/Research | Identified exit to Garrison 26715 | -2/Research | Entered Garrison 26715 | -2/Garrison | Accompanied by 21 allies 26764 | -2/Garrison | Triggered checkpoint 26791 | -2/Garrison | Spotted B-90 Cyclops 26814 | -2/Garrison | Lost 12 allies 26820 | -2/Garrison | Allies destroyed B-90 Cyclops 26829 | -2/Garrison | Triggered checkpoint 26861 | -2/Garrison | Triggered checkpoint 26870 | -2/Garrison | Lost 3 allies 26907 | -2/Garrison | Triggered checkpoint 26995 | -2/Garrison | Discovered new exit (range 14) 27037 | -2/Garrison | Triggered checkpoint 27081 | -2/Garrison | Garrison Relay disabled 27129 | -2/Garrison | Triggered checkpoint 27142 | -2/Garrison | Garrison Relay disabled 27153 | -2/Garrison | Discovered new exit (range 10) 27181 | -2/Garrison | Triggered checkpoint 27224 | -2/Garrison | Expanded RIF knowledge: Autooverride 27234 | -2/Garrison | Discovered new exit (range 8) 27263 | -2/Garrison | Triggered checkpoint 27342 | -2/Garrison | Spotted B-90 Cyclops 27454 | -2/Garrison | Lost 7 allies 27606 | -2/Garrison | Rescued a captive Derelict 27612 | -2/Garrison | Allies destroyed B-90 Cyclops 27626 | -2/Garrison | Garrison Relay disabled 27638 | -2/Garrison | Found Relay Coupler [Proto] 27642 | -2/Garrison | Lost 10 allies 27931 | -2/Garrison | Triggered checkpoint 27962 | -2/Garrison | Garrison Relay disabled 27988 | -2/Garrison | Garrison Relay disabled 28049 | -2/Garrison | Lost 4 allies 28199 | -2/Garrison | Entered Access 28199 | -1/Access | Accompanied by 16 allies 28199 | -1/Access | Evolved 2 slots: Utility x2 28340 | -1/Access | Identified exit to Garrison 28385 | -1/Access | Entered Garrison 28385 | -1/Garrison | Accompanied by 16 allies 28443 | -1/Garrison | Triggered checkpoint 28444 | -1/Garrison | Triggered checkpoint 28457 | -1/Garrison | Spotted B-99 Colossus 28475 | -1/Garrison | Allies destroyed B-99 Colossus 28495 | -1/Garrison | Triggered checkpoint 28496 | -1/Garrison | Triggered checkpoint 28569 | -1/Garrison | Lost 18 allies 28616 | -1/Garrison | Lost 6 allies 28670 | -1/Garrison | Garrison Relay disabled 28677 | -1/Garrison | Triggered checkpoint 28686 | -1/Garrison | Discovered new exit (range 14) 28735 | -1/Garrison | Triggered checkpoint 28766 | -1/Garrison | Garrison Relay disabled 28774 | -1/Garrison | Triggered checkpoint 28826 | -1/Garrison | Discovered new exit (range 12) 28855 | -1/Garrison | Triggered checkpoint 28872 | -1/Garrison | Garrison Relay disabled 28876 | -1/Garrison | Expanded RIF knowledge: Code Merge 28996 | -1/Garrison | Found embedded Infiltrators 29035 | -1/Garrison | Discovered new exit (range 14) 29063 | -1/Garrison | Triggered checkpoint 29068 | -1/Garrison | Garrison Relay disabled 29074 | -1/Garrison | Garrison Relay disabled 29095 | -1/Garrison | Triggered checkpoint 29318 | -1/Garrison | Entered Access 29318 | -1/Access | Accompanied by 13 allies 29632 | -1/Access | Unchained authorized (BL-1NK) 29736 | -1/Access | Spotted BL-1NK 29751 | -1/Access | Garrison activated, responded to threat 29771 | -1/Access | Allies destroyed BL-1NK 29785 | -1/Access | Found Prototype Device 29968 | -1/Access | Spotted B-99 Colossus 30072 | -1/Access | Spotted B-99 Colossus 30073 | -1/Access | Autoassimilated Colossus 10a with RIF 30100 | -1/Access | Discovered new exit (range 4) 30107 | -1/Access | Lost 17 allies 30167 | -1/Access | Entered Command 30167 | -1/Command | Accompanied by 9 allies 30457 | -1/Command | Spotted M Guard 30457 | -1/Command | Spotted M Guard 30459 | -1/Command | Spotted Combat Programmer 30478 | -1/Command | Spotted Combat Programmer 30489 | -1/Command | Allies destroyed Combat Programmer 30489 | -1/Command | Allies destroyed Combat Programmer 30509 | -1/Command | Autoassimilated M Guard with RIF 30510 | -1/Command | Assimilated M Guard with formatsys_high 30519 | -1/Command | Identified Blink Core 30637 | -1/Command | Spotted Executioner 30637 | -1/Command | Spotted Executioner 30637 | -1/Command | Spotted Striker 30637 | -1/Command | Spotted Alpha 7 30637 | -1/Command | Spotted Executioner 30637 | -1/Command | Spotted Executioner 30637 | -1/Command | Spotted Striker 30637 | -1/Command | Spotted Alpha 7 30638 | -1/Command | Autoassimilated Executioner with RIF 30638 | -1/Command | Autoassimilated Striker with RIF 30638 | -1/Command | Autoassimilated Alpha 7 with RIF 30638 | -1/Command | Autoassimilated Executioner with RIF 30638 | -1/Command | Autoassimilated Executioner with RIF 30638 | -1/Command | Spotted B-99 Colossus 30638 | -1/Command | Spotted B-99 Colossus 30640 | -1/Command | Assimilated Alpha 7 with formatsys_high 30641 | -1/Command | Assimilated Executioner with formatsys_high 30654 | -1/Command | Allies destroyed Striker 30662 | -1/Command | Assimilated Colossus 10b with formatsys_high 30667 | -1/Command | Allies destroyed B-99 Colossus 30829 | -1/Command | Met MAIN.C 30840 | -1/Command | 0b10 Conduit disabled 30846 | -1/Command | Allies destroyed MAIN.C Shell 30846 | -1/Command | MAIN.C activated Command garrisons 30871 | -1/Command | Allies destroyed MAIN.C 30874 | -1/Command | Lost 4 allies 30938 | -1/Command | Allies destroyed Executioner 30992 | -1/Command | Destroyed 8 combat bots 31002 | -1/Command | Lost 4 parts (1n2u1w) 31098 | -1/Command | Lost 40 allies 31177 | -1/Command | Discovered new exit (range 49) 31177 | -1/Command | Discovered new exit (range 83) 31177 | -1/Command | Extracted map data and part IDs from MAIN.C's data core 31338 | *** | Establishing 0b11! Last Messages --------------- 31213_ Backup Laser VII tumbles out of repair station. 31213_ Backup Propulsion VII tumbles out of repair station. 31213_ Backup Power VII tumbles out of repair station. 31213_ Backup Propulsion VII tumbles out of repair station. 31213_ Backup Laser VII tumbles out of repair station. 31219_ B-74 Champion reactivates. 31224_ System corrupted: Energy discharge (-49). 31231_ B-74 Champion system terminally corrupted. 31249_ Slug penetrates P-80 Master. 31249_ Destroyed Gamma Rifle. 31249_ P-80 Master destroyed. 31252_ V,2 U6E5KX46YM%J=WSFP,J 31260_ The Access Shell folds into the floor. 31276_ System corrupted: Matter fused (-9). Map ----- +----------------------------------------------------+ | ???####+#########????????????????????????????????? | | ????# #???????????????????????????????????????? | | ????# " #???????????????????????????????????????? | | ????# #???????????????????????????????????????? | | ????# #???????????????????????????????????????? | | ????## ###########??????????????????????????????? | | ?????# # ! #??????????????????????????????? | | ?????# + #??????????????????????????????? | | ?????# # #??????????????????????????????? | | ?????# # ! #??????????????????????????????? | | ####?# ####+######??????????????????????????????? | | #?# #??# #???????????????????????????????????? | | !%=#?# #??# #???????????????????????????????????? | | #?# #??# #???????????????????????????????????? | | # #### #??# #???????????????????????????????????? | | + #??# #???????????????????????????????????? | | + #??# #???????????????????????????????????? | | + #??# #???????????????????????????????????? | | + #??# #????################???????????????? | | # #### #??# #????################???????????????? | | #?# ####+####### ##???????????????? | | % #?# ## ### ##???????????????? | | #?# ## ### ^^^^^^^^ ##???????????????? | | ###### ## ### Y ^ ##???????????????? | | ????# # ### ^ Y ^ ##??????????????## | | ????# # ### ^ Y@7 ^ ##??????????????# | | ????# + ! ### ^ "" ^ ##??????????????# | | ????# # =### ^ ^ ##??????????????# | | ????## ## ### !* ^ %##???############+ | | ?????# ## ### !^^ ^ ^^^ ##???# * | | ?????# ## ###![%*] %##???# | | ?????# ## ###!!== ##???# "" | | ?????# ##+##+########!^^ ^^ ;####???# """" | | ?????# #???#### ^^^^^^ ####???# """" | | ?????# #?????###%^^%/ ;##?????# "" | | ?????# #?????## ^^^^ ;#?????# | | ?????# #?????##!%^^! ^;;#?????# | | ?????# #?????## ^ ^^ ;#?????# | | ???###+######"###???##;^ ^^ ;#?????# | | ???# #???## ^ "#?????# | | ???# #???###^ ^%%^""#?????# | | ???# "" #???###^ ^ ^%"##?????############# | | ???# """" #???###"+++"""##?????????????????? | | ???# """" #?????## "##??????????????????? | | ???# "" != #??????# #############????????? | | ???# |=%![#??????# # #????????? | | ???# ==!=*#??????# # #????????? | | ???##########+###??????# # #????????? | | ????????????#!#????????#== #"""" #????????? | | ????????????#%#???######%[ #"""" #????????? | +----------------------------------------------------+ Best States ------------- Heat Dissipation 60 Energy Generation 23 Energy Capacity 550 Matter Stores 300 Matter Capacity 300 Sight Range 16 Robot Scan Range 16 Terrain Scan Density 10 Armor Coverage 375 Utility Shielding 66 Weapon Cycling 25 Evasion (%) 79 Targeting Accuracy 8 Recoil Reduction 3 Offensive Hacking 10 Defensive Hacking 12 Relay Coupler Types 7 Relay Coupler Value 638 Item Schematics ----------------- None Robot Schematics ------------------ None Fabricated ------------ Nothing Repaired ---------- Imp. VTOL Module | 38% | -6/Factory Studied --------- Arm. Treads | -8/Materials | Hacked Imp. Datajack | -6/Factory | Hacked VTOL Module | -6/Factory | Hacked Remote Datajack | -5/Factory | Hacked Field Propulsion Array | -3/Research | Hacked Mic. Antimatter Reactor | -3/Research | Hacked Adv. Remote Datajack | -2/Research | Hacked Alien Tech Used ----------------- None Achievements -------------- Drive-By Watcher Gambling Challenges ------------ None Game ------ Seed CarbideCryofiberCapacitor Manual? 0 Play Time 06:57:59 Cumulative 1369.8 hours Start 2026.09.12 @ 13:07:30 End 2026.09.12 @ 22:20:17 Sessions 1 Manual Loads 0 Difficulty Rogue Special Mode None Game No. 578 Rogue 576 Adventurer 1 Explorer 1 Win Type 1 Total 222 Types 65/23/36/5/2/1/79/4/4/3 Lore% 99 Gallery% 94 Achievement% 85 Wizard Run 0 Options --------- Layout 2 ASCII 0 Keyboard 1 Movement Numpad Keybinds 0 Fullscreen 0 Font 24/Terminus Map View 50x44 Zoom Use 0% Tactical HUD 1 Map Filters NONE Filters NONE Steam 1 RUN: 78bd1480-0a46-4fe8-b13b-ba6238d66263